Workbook

Sheet INPUT
A1: =IF(H9=1,"TEST PERIOD WITH RIDERS","TEST PERIOD WITHOUT RIDERS") -> TEST PERIOD WITH RIDERS
A3: Input Areas in Grey
B4: 12 MONTHS FORECASTED | D4: =IF(H9=1,"INCLUDES ALL RIDERS","") -> INCLUDES ALL RIDERS
B6: DUKE ENERGY KENTUCKY
B7: CASE NO. 2021-00190
B8: AUTOMATED RATE CASE FILING SYSTEM
B9: FOR THE TWELVE MONTHS ENDED DECEMBER 31, 2022 | H9: 1
B11: TYPE OF SERVICE: | C11: (GAS SERVICE)
B12: DATA: ___ BASE PERIOD _X_FORECASTED PERIOD
B13: TYPE OF FILING: _X_ ORIGINAL ___UPDATED ___ REVISED
B15: WITNESS: | C15: J.L. Kern
B17: CURRENT RATES:
B18: EXPECTED GAS COST: | C18: 4.062
C20: Do not enter riders below. Enter them over here!
B21: Rider DSMR: | C21: Current | D21: Proposed | F21: ---------> | G21: Current | H21: Proposed
B22: Rate RS (HEA) | C22: =IF($H$9=1,G22,0) -> 0.3 | D22: =IF($H$9=1,H22,0) -> 0.3 | E22: Monthly | G22: 0.3 | H22: 0.3 | I22: Monthly
B23: Rate RS | C23: =IF($H$9=1,G23,0) -> 0.45817 | D23: =IF($H$9=1,H23,0) -> 0.45817 | E23: $ per MCF | G23: 0.45817 | H23: 0.45817 | I23: $ per MCF
B24: Rate GS | C24: =IF($H$9=1,G24,0) -> 0 | D24: 0 | E24: $ per MCF | G24: 0 | H24: 0 | I24: $ per MCF
B28: Rider GCAT: | C28: Current | D28: Proposed | G28: Current | H28: Proposed
B29: Rate FT-L | C29: =IF($H$9=1,G29,0) -> -0.058 | D29: =IF($H$9=1,H29,0) -> -0.058 | E29: $ per MCF | G29: -0.058 | H29: -0.058 | I29: $ per MCF
B31: Interdepartmental Rates | C31: Current | D31: Proposed
B32: Customer Charge | E32: $ per MCF | F32: Not used
B35: Rate RS: | C35: Current | D35: Proposed
B36: Customer Charge | C36: 16.5 | D36: ='Proposed Rates'!C14 -> 19 | E36: $ per Month
B37: Delivery Rate | C37: 4.692 | D37: ='Proposed Rates'!C20 -> 5.533 | E37: $ per MCF
B39: Rate GS: | C39: Current | D39: Proposed
B40: Customer Charge | C40: 50 | D40: ='Proposed Rates'!G14 -> 58 | E40: $ per Month
B41: Delivery Rate | C41: 2.9243 | D41: ='Proposed Rates'!G22 -> 4.2149 | E41: $ per MCF
B43: Rate FT-L: | C43: Current | D43: Proposed
B44: Administrative Charge | C44: 430 | D44: ='Proposed Rates'!K14 -> 430 | E44: $ per Month
B45: Delivery Rate | C45: 1.821 | D45: ='Proposed Rates'!K22 -> 2.3524 | E45: $ per MCF
B47: Rate IT: | C47: Current | D47: Proposed
B48: Administrative Charge | C48: 430 | D48: ='Proposed Rates'!O14 -> 430 | E48: $ per Month
B49: Commodity Charge | C49: 0.9982 | D49: ='Proposed Rates'!O20 -> 1.2627 | E49: $ per MCF

Sheet PRINT
B6: SCHEDULE M-2.2 (CURRENT RATES) | L6: SCHEDULE M-2.3 (PROPOSED RATES)

Sheet SCH M
A1: =COMPANY -> DUKE ENERGY KENTUCKY
A2: =CASE -> CASE NO. 2021-00190
A3: REVENUES AT PRESENT AND PROPOSED RATES
A4: =TIME_PERIOD -> FOR THE TWELVE MONTHS ENDED DECEMBER 31, 2022
A5: =SERV_TYPE -> (GAS SERVICE)
A7: =DATA_TYPE -> DATA: ___ BASE PERIOD _X_FORECASTED PERIOD | K7: SCHEDULE M
A8: =FILING_TYPE -> TYPE OF FILING: _X_ ORIGINAL ___UPDATED ___ REVISED | K8: PAGE 1 OF 1
A9: WORK PAPER REFERENCE NO(S).: | K9: WITNESS:
A10: =TIME -> 12 MONTHS FORECASTED | K10: =WIT -> J.L. Kern
A11: =INPUT!D4 -> INCLUDES ALL RIDERS
E14: REVENUE AT | G14: REVENUE AT | I14: REVENUE | K14: % OF
A15: LINE | C15: RATE | E15: PRESENT | G15: PROPOSED | I15: CHANGE | K15: REVENUE
A16: NO. | C16: CLASSIFICATION | E16: RATES | G16: RATES | I16: (AMOUNT) | K16: CHANGE
C17: (A) | E17: (B) | G17: (C) | I17: (D=C-B) | K17: (E=D / B)
E18: ($) | G18: ($) | I18: ($)
A19: 1 | C19: SALES SERVICE:
A21: 2 | C21: RS RESIDENTIAL | E21: ='Rate RS'!AN79 -> 78691507 | G21: ='Rate RS'!R38 -> 86967381 | I21: =G21-E21 -> 8275874 | K21: =IF(E21=0,"0.00%",ROUND(I21/E21,4)) -> 0.1052
A22: 3 | C22: TOTAL RS | E22: =E21 -> 78691507 | G22: =G21 -> 86967381 | I22: =I21 -> 8275874 | K22: =IF(E22=0,"0.00%",ROUND(I22/E22,4)) -> 0.1052
A24: 4 | C24: GS COMMERCIAL | E24: ='Rate GS COM'!AN77 -> 23890508 | G24: ='Rate GS COM'!R37 -> 28206657 | I24: =G24-E24 -> 4316149 | K24: =IF(E24=0,"0.00%",ROUND(I24/E24,4)) -> 0.1807
A25: 5 | C25: GS INDUSTRIAL | E25: ='Rate GS IND'!AN82 -> 2459804 | G25: ='Rate GS IND'!R37 -> 2910650 | I25: =G25-E25 -> 450846 | K25: =IF(E25=0,"0.00%",ROUND(I25/E25,4)) -> 0.1833
A26: 6 | C26: GS OTHER PUB AUTH | E26: ='Rate GS OPA'!AN79 -> 2147642 | G26: ='Rate GS OPA'!R37 -> 2541240 | I26: =G26-E26 -> 393598 | K26: =IF(E26=0,"0.00%",ROUND(I26/E26,4)) -> 0.1833
A27: 7 | C27: TOTAL GS | E27: =SUM(E24:E26) -> 28497954 | G27: =SUM(G24:G26) -> 33658547 | I27: =SUM(I24:I26) -> 5160593 | K27: =IF(E27=0,"0.00%",ROUND(I27/E27,4)) -> 0.1811
A29: 8 | C29: TOTAL SALES SERVICE | E29: =E22+E27 -> 107189461 | G29: =G22+G27 -> 120625928 | I29: =I22+I27 -> 13436467 | K29: =IF(E29=0,"0.00%",ROUND(I29/E29,4)) -> 0.1254
A31: 9 | C31: TRANSPORTATION:
A33: 10 | C33: FT LARGE | E33: ='Rate FT-LG'!AN71 -> 5444212 | G33: ='Rate FT-LG'!R34 -> 6898220 | I33: =G33-E33 -> 1454008 | K33: =IF(E33=0,"0.00%",ROUND(I33/E33,4)) -> 0.2671
A34: 11 | C34: IT | E34: ='Rate IT'!AN74 -> 1782710 | G34: ='Rate IT'!R34 -> 2225007 | I34: =G34-E34 -> 442297 | K34: =IF(E34=0,"0.00%",ROUND(I34/E34,4)) -> 0.2481
A35: 12 | C35: TOTAL TRANSPORTATION | E35: =SUM(E33:E34) -> 7226922 | G35: =SUM(G33:G34) -> 9123227 | I35: =SUM(I33:I34) -> 1896305 | K35: =IF(E35=0,"0.00%",ROUND(I35/E35,4)) -> 0.2624
A36: 13 | C36: TOTAL THROUGHPUT | E36: =E35+E29 -> 114416383 | G36: =G35+G29 -> 129749155 | I36: =I35+I29 -> 15332772 | K36: =IF(E36=0,"0.00%",ROUND(I36/E36,4)) -> 0.134
A37: 14 | C37: MISCELLANEOUS REVENUES:
A39: 15 | C39: LATE PAYMENT CHARGES | E39: ='SCH M-2.2'!V37 -> 0 | G39: ='SCH M-2.3'!R37 -> 0 | I39: =G39-E39 -> 0 | K39: =IF(I39=0,"0.00%",ROUND(I39/E39,4)) -> 0.00%
A40: 16 | C40: BAD CHECK CHARGES | E40: ='SCH M-2.2'!V38 -> 27420 | G40: ='SCH M-2.3'!R38 -> 27420 | I40: 0 | K40: 0.00%
A41: 17 | C41: RECONNECTION CHARGES | E41: ='SCH M-2.2'!V39 -> 23364 | G41: ='SCH M-2.3'!R39 -> 28037 | I41: 4673 | K41: 0.2
A42: 18 | C42: FIELD COLLECTION CHARGES | E42: ='SCH M-2.2'!V40 -> 684 | G42: ='SCH M-2.3'!R40 -> 684 | I42: 0 | K42: 0.00%
A43: 19 | C43: INTERDEPARTMENTAL | E43: ='SCH M-2.2'!V41 -> 27765 | G43: ='SCH M-2.3'!R41 -> 32824.91003 | I43: 5059.910029 | K43: 0.1822
A44: 20 | C44: MINIMUM USE CONTRACT | E44: ='SCH M-2.2'!V42 -> 258228 | G44: ='SCH M-2.3'!R42 -> 143553.6744 | I44: -114674.3256 | K44: -0.4441
A45: 21 | C45: REVENUE TRANSP OF GAS-INTERCO | E45: ='SCH M-2.2'!V43 -> 0 | G45: ='SCH M-2.3'!R43 -> 0 | I45: 0 | K45: 0.00%
A46: 22 | C46: PROVISION FOR RATE REFUNDS | E46: ='SCH M-2.2'!V44 -> 0 | G46: ='SCH M-2.3'!R44 -> 0 | I46: =G46-E46 -> 0 | K46: =IF(I46=0,"0.00%",ROUND(I46/E46,4)) -> 0.00%
A47: 23 | C47: OTHER MISC | E47: ='SCH M-2.2'!V45 -> 528 | G47: ='SCH M-2.3'!R45 -> 528 | I47: 0 | K47: 0.00%
A48: 24 | C48: TOTAL MISCELLANEOUS | E48: =SUM(E39:E47) -> 337989 | G48: =SUM(G39:G47) -> 233047.5844 | I48: =SUM(I39:I47) -> -104941.4156 | K48: -0.3105
A50: 25 | C50: TOTAL COMPANY REVENUE | E50: =E29++E35+E48 -> 114754372 | G50: =G29++G35+G48 -> 129982202.6 | I50: =I29++I35+I48 -> 15227830.58 | K50: =IF(I50=0,"0.00%",ROUND(I50/E50,4)) -> 0.1327

Sheet SCH M-2.1
A1: =COMPANY -> DUKE ENERGY KENTUCKY
A2: =CASE -> CASE NO. 2021-00190
A3: TEST PERIOD REVENUES AT CURRENT AVERAGE RATES
A4: =TIME_PERIOD -> FOR THE TWELVE MONTHS ENDED DECEMBER 31, 2022
A5: =SERV_TYPE -> (GAS SERVICE)
A6: =DATA_TYPE -> DATA: ___ BASE PERIOD _X_FORECASTED PERIOD | R6: SCHEDULE M-2.1
A7: =FILING_TYPE -> TYPE OF FILING: _X_ ORIGINAL ___UPDATED ___ REVISED | R7: PAGE 1 OF 1
A8: WORK PAPER REFERENCE NO(S).: | R8: WITNESS:
A9: =TIME -> 12 MONTHS FORECASTED | F9: =INPUT!D4 -> INCLUDES ALL RIDERS | R9: =WIT -> J.L. Kern
A10: TEST PERIOD
J12: TEST PERIOD | N12: % OF REV
J13: REVENUE LESS | L13: CURRENT | N13: TO TOTAL | R13: TEST PERIOD
A14: LINE | C14: RATE | D14: CLASS / | F14: CUSTOMER | J14: GAS COST | L14: AVERAGE | N14: EXCLUSIVE OF | P14: GAS COST | R14: REVENUE | T14: % OF REV
A15: NO. | C15: CODE | D15: DESCRIPTION | F15: BILLS | H15: SALES | J15: REVENUE | L15: RATE | N15: GAS COST | P15: REVENUE | R15: TOTAL | T15: TO TOTAL
C16: (A) | D16: (B) | F16: (C) | H16: (D) | J16: (E) | L16: (F=E/D) | N16: (G) | P16: (H) | R16: (I) | T16: (J)
H18: (MCF) | J18: ($) | L18: ($/MCF) | N18: (%) | P18: ($) | R18: ($) | T18: (%)
A19: 1 | C19: RS | D19: RESIDENTIAL SERVICE | F19: ='Rate RS'!X79 -> 1130041 | H19: ='Rate RS'!Z79 -> 6481298 | J19: ='Rate RS'!AD79 -> 52364475 | L19: =IF(H19=0,"-",ROUND(J19/H19,4)) -> 8.0793 | N19: =IF(ABS(J19/$J$34*100)<0.005,"-",ROUND(J19/$J$34*100,2))-0.01 -> 70.47 | P19: ='Rate RS'!AL79 -> 26327032 | R19: =J19+P19 -> 78691507 | T19: =IF(ABS(R19/$R$34*100)<0.005,"-",ROUND(R19/$R$34*100,2)) -> 68.57
A20: 2 | C20: GS | D20: GENERAL SERVICE COMMERCIAL | F20: ='Rate GS COM'!X77 -> 78612 | H20: ='Rate GS COM'!Z77 -> 2857007 | J20: ='Rate GS COM'!AD77 -> 12285346 | L20: =IF(H20=0,"-",ROUND(J20/H20,4)) -> 4.3001 | N20: =IF(ABS(J20/$J$34*100)<0.005,"-",ROUND(J20/$J$34*100,2)) -> 16.54 | P20: ='Rate GS COM'!AL77 -> 11605162 | R20: =J20+P20 -> 23890508 | T20: 20.82
A21: 3 | C21: GS | D21: GENERAL SERVICE INDUSTRIAL | F21: ='Rate GS IND'!X82 -> 2879 | H21: ='Rate GS IND'!Z82 -> 331485 | J21: ='Rate GS IND'!AD82 -> 1113312 | L21: 3.3586 | N21: 1.5 | P21: ='Rate GS IND'!AL82 -> 1346492 | R21: 2459804 | T21: 2.14
A22: 4 | C22: GS | D22: GENERAL SERVICE OTHER PUB AUTH | F22: ='Rate GS OPA'!X79 -> 2541 | H22: ='Rate GS OPA'!Z79 -> 289222 | J22: ='Rate GS OPA'!AD79 -> 972822 | L22: 3.3636 | N22: 1.31 | P22: ='Rate GS OPA'!AL79 -> 1174820 | R22: 2147642 | T22: 1.87
A23: 5 | C23: FT-L | D23: FIRM TRANSPORTATION-LARGE | F23: ='Rate FT-LG'!X71 -> 1092 | H23: ='Rate FT-LG'!Z71 -> 2736182 | J23: ='Rate FT-LG'!AD71 -> 5452147 | L23: 1.9926 | N23: 7.34 | P23: ='Rate FT-LG'!AL71 -> -7935 | R23: 5444212 | T23: 4.74
A24: 6 | C24: IT | D24: INTERRUPTIBLE TRANSPORTATION | F24: ='Rate IT'!X74 -> 264 | H24: ='Rate IT'!Z74 -> 1672200 | J24: ='Rate IT'!AD74 -> 1782710 | L24: =IF(H24=0,"-",ROUND(J24/H24,4)) -> 1.0661 | N24: 2.4 | P24: ='Rate IT'!AL74 -> 0 | R24: =J24+P24 -> 1782710 | T24: 1.55
A25: 7 | D25: LATE PAYMENT CHARGES | F25: ='SCH M-2.2'!F37 -> 0 | H25: ='SCH M-2.2'!H37 -> 0 | J25: ='SCH M-2.2'!L37 -> 0 | L25: =IF(H25=0,"-",ROUND(J25/H25,4)) -> - | N25: - | P25: ='SCH M-2.2'!T37 -> 0 | R25: 0 | T25: -
A26: 8 | D26: BAD CHECK CHARGES | F26: ='SCH M-2.2'!F38 -> 0 | H26: ='SCH M-2.2'!H38 -> 0 | J26: ='SCH M-2.2'!L38 -> 27420 | L26: - | N26: 0.04 | P26: ='SCH M-2.2'!T38 -> 0 | R26: 27420 | T26: 0.02
A27: 9 | D27: RECONNECTION CHARGES | F27: ='SCH M-2.2'!F39 -> 0 | H27: ='SCH M-2.2'!H39 -> 0 | J27: ='SCH M-2.2'!L39 -> 23364 | L27: - | N27: 0.03 | P27: ='SCH M-2.2'!T39 -> 0 | R27: 23364 | T27: 0.02
A28: 10 | D28: FIELD COLLECTION CHARGES | F28: ='SCH M-2.2'!F40 -> 0 | H28: ='SCH M-2.2'!H40 -> 0 | J28: ='SCH M-2.2'!L40 -> 684 | L28: - | N28: - | P28: ='SCH M-2.2'!T40 -> 0 | R28: 684 | T28: -
A29: 11 | D29: INTERDEPARTMENTAL | F29: ='SCH M-2.2'!F41 -> 0 | H29: ='SCH M-2.2'!H41 -> 4158 | J29: ='SCH M-2.2'!L41 -> 10875 | L29: 2.6154 | N29: 0.01 | P29: ='SCH M-2.2'!T41 -> 16890 | R29: 27765 | T29: 0.02
A30: 12 | D30: MINIMUM USE CONTRACT | F30: ='SCH M-2.2'!F42 -> 0 | H30: ='SCH M-2.2'!H42 -> 0 | J30: ='SCH M-2.2'!L42 -> 258228 | L30: - | N30: 0.35 | P30: ='SCH M-2.2'!T42 -> 0 | R30: 258228 | T30: 0.23
A31: 13 | D31: REVENUE TRANSP OF GAS-INTERCO | F31: ='SCH M-2.2'!F43 -> 0 | H31: ='SCH M-2.2'!H43 -> 0 | J31: ='SCH M-2.2'!L43 -> 0 | L31: - | N31: - | P31: ='SCH M-2.2'!T43 -> 0 | R31: 0 | T31: -
A32: 14 | D32: PROVISION FOR RATE REFUNDS | F32: ='SCH M-2.2'!F44 -> 0 | H32: ='SCH M-2.2'!H44 -> 0 | J32: ='SCH M-2.2'!L44 -> 0 | L32: =IF(H32=0,"-",ROUND(J32/H32,4)) -> - | N32: - | P32: ='SCH M-2.2'!T44 -> 0 | R32: =J32+P32 -> 0 | T32: -
A33: 15 | D33: OTHER MISCELLANEOUS | F33: ='SCH M-2.2'!F45 -> 0 | H33: ='SCH M-2.2'!H45 -> 0 | J33: ='SCH M-2.2'!L45 -> 528 | L33: - | N33: - | P33: ='SCH M-2.2'!T45 -> 0 | R33: 528 | T33: -
A34: 16 | C34: TOTAL | F34: =SUM(F19:F33) -> 1215429 | H34: =SUM(H19:H33) -> 14371552 | J34: =SUM(J19:J33) -> 74291911 | L34: =IF(H34=0,"-",ROUND(J34/H34,4)) -> 5.1694 | N34: =SUM(N19:N33) -> 99.99 | P34: =SUM(P19:P33) -> 40462461 | R34: =SUM(R19:R33) -> 114754372 | T34: =SUM(T19:T33) -> 99.98
C36: NOTE: DETAIL CONTAINED ON SCHEDULES M-2.2 AND M-2.3.

Sheet SCH M-2.2
A1: =COMPANY -> DUKE ENERGY KENTUCKY
A2: =CASE -> CASE NO. 2021-00190
A3: ANNUALIZED REVENUES AT PROPOSED VS. MOST CURRENT RATES
A4: =TIME_PERIOD -> FOR THE TWELVE MONTHS ENDED DECEMBER 31, 2022
A5: =SERV_TYPE -> (GAS SERVICE)
A6: =DATA_TYPE -> DATA: ___ BASE PERIOD _X_FORECASTED PERIOD | V6: SCHEDULE M-2.2
A7: =FILING_TYPE -> TYPE OF FILING: _X_ ORIGINAL ___UPDATED ___ REVISED | V7: PAGE 1 OF 7
A8: WORK PAPER REFERENCE NO(S).: | V8: WITNESS:
A9: =TIME -> 12 MONTHS FORECASTED | F9: =INPUT!D4 -> INCLUDES ALL RIDERS | V9: =WIT -> J.L. Kern
A10: CURRENT ANNUALIZED
L12: CURRENT | N12: % OF REV TO | P12: REVENUE | R12: % INCR IN | V12: CURRENT | X12: TOTAL
J13: MOST | L13: REVENUE LESS | N13: TOTAL LESS | P13: INCR LESS | R13: REV LESS | V13: TOTAL | X13: REVENUE
A14: LINE | C14: RATE | D14: CLASS / | F14: CUSTOMER | J14: CURRENT | L14: GAS COST | N14: GAS COST | P14: GAS COST REV | R14: GAS COST REV | T14: GAS COST | V14: REVENUE | X14: % INCREASE
A15: NO. | C15: CODE | D15: DESCRIPTION | F15: BILLS(1) | H15: SALES(2) | J15: RATES | L15: REVENUE(4) | N15: REVENUE | P15: (F - K) | R15: (M / K) | T15: REVENUE(3) | V15: (K + H) | X15: (M / K1)
C16: (A) | D16: (B) | F16: (C) | H16: (D) | J16: (J) | L16: (K) | N16: (L) | P16: (M) | R16: (N) | T16: (H) | V16: (K1) | X16: (O)
H18: (MCF) | J18: ($/MCF) | L18: ($) | N18: (%) | P18: ($) | R18: (%) | T18: ($) | V18: ($) | X18: (%)
A19: 1 | C19: SALES SERVICE:
A20: 2 | C20: RS | D20: RESIDENTIAL | F20: ='Rate RS'!X79 -> 1130041 | H20: ='Rate RS'!Z79 -> 6481298 | J20: =ROUND((L20/H20),4) -> 8.0793 | L20: ='Rate RS'!AD79 -> 52364475 | N20: =ROUND((L20/L$21)*100,2) -> 100 | P20: ='Rate RS'!AH79 -> 8275874 | R20: =IF(L20=0,"0.0 ",ROUND((P20/L20)*100,1)) -> 15.8 | T20: ='Rate RS'!AL79 -> 26327032 | V20: ='Rate RS'!AN79 -> 78691507 | X20: =IF(V20=0,"0.0 ",ROUND((P20/V20)*100,1)) -> 10.5
A21: 3 | D21: TOTAL RS | F21: =F20 -> 1130041 | H21: =H20 -> 6481298 | J21: =ROUND((L21/H21),4) -> 8.0793 | L21: =L20 -> 52364475 | N21: =ROUND((L21/$L48)*100,2)+0.01 -> 70.49 | P21: =P20 -> 8275874 | R21: =IF(L21=0,"0.0 ",ROUND((P21/L21)*100,1)) -> 15.8 | T21: =T20 -> 26327032 | V21: =V20 -> 78691507 | X21: =IF(V21=0,"0.0 ",ROUND((P21/V21)*100,1)) -> 10.5
A23: 4 | C23: GS | D23: COMMERCIAL | F23: ='Rate GS COM'!X77 -> 78612 | H23: ='Rate GS COM'!Z77 -> 2857007 | J23: =ROUND((L23/H23),4) -> 4.3001 | L23: ='Rate GS COM'!AD77 -> 12285346 | N23: =ROUND((L23/$L26)*100,2) -> 85.48 | P23: ='Rate GS COM'!AH77 -> 4316149 | R23: =IF(L23=0,"0.0 ",ROUND((P23/L23)*100,1)) -> 35.1 | T23: ='Rate GS COM'!AL77 -> 11605162 | V23: ='Rate GS COM'!AN77 -> 23890508 | X23: =IF(V23=0,"0.0 ",ROUND((P23/V23)*100,1)) -> 18.1
A24: 5 | C24: GS | D24: INDUSTRIAL | F24: ='Rate GS IND'!X82 -> 2879 | H24: ='Rate GS IND'!Z82 -> 331485 | J24: =ROUND((L24/H24),4) -> 3.3586 | L24: ='Rate GS IND'!AD82 -> 1113312 | N24: =ROUND((L24/$L26)*100,2) -> 7.75 | P24: ='Rate GS IND'!AH82 -> 450846 | R24: =IF(L24=0,"0.0 ",ROUND((P24/L24)*100,1)) -> 40.5 | T24: ='Rate GS IND'!AL82 -> 1346492 | V24: ='Rate GS IND'!AN82 -> 2459804 | X24: =IF(V24=0,"0.0 ",ROUND((P24/V24)*100,1)) -> 18.3
A25: 6 | C25: GS | D25: OTH PUB AUTH | F25: ='Rate GS OPA'!X79 -> 2541 | H25: ='Rate GS OPA'!Z79 -> 289222 | J25: =ROUND((L25/H25),4) -> 3.3636 | L25: ='Rate GS OPA'!AD79 -> 972822 | N25: =ROUND((L25/$L26)*100,2) -> 6.77 | P25: ='Rate GS OPA'!AH79 -> 393598 | R25: =IF(L25=0,"0.0 ",ROUND((P25/L25)*100,1)) -> 40.5 | T25: ='Rate GS OPA'!AL79 -> 1174820 | V25: ='Rate GS OPA'!AN79 -> 2147642 | X25: =IF(V25=0,"0.0 ",ROUND((P25/V25)*100,1)) -> 18.3
A26: 7 | D26: TOTAL GS | F26: =SUM(F23:F25) -> 84032 | H26: =SUM(H23:H25) -> 3477714 | J26: =ROUND((L26/H26),4) -> 4.1325 | L26: =SUM(L23:L25) -> 14371480 | N26: =ROUND((L26/$L48)*100,2) -> 19.34 | P26: =SUM(P23:P25) -> 5160593 | R26: =IF(L26=0,"0.0 ",ROUND((P26/L26)*100,1)) -> 35.9 | T26: =SUM(T23:T25) -> 14126474 | V26: =SUM(V23:V25) -> 28497954 | X26: =IF(V26=0,"0.0 ",ROUND((P26/V26)*100,1)) -> 18.1
A28: 8 | C28: TOTAL SALES SERVICE | F28: =F21+F26 -> 1214073 | H28: =H21+H26 -> 9959012 | J28: =ROUND((L28/H28),4) -> 6.7011 | L28: =L21+L26 -> 66735955 | N28: =100-N33-N46 -> 89.83 | P28: =P21+P26 -> 13436467 | R28: =IF(L28=0,"0.0 ",ROUND((P28/L28)*100,1)) -> 20.1 | T28: =T21+T26 -> 40453506 | V28: =V21+V26 -> 107189461 | X28: =IF(V28=0,"0.0 ",ROUND((P28/V28)*100,1)) -> 12.5
A30: 9 | C30: TRANSPORTATION SERVICE:
A31: 10 | C31: FT-L | D31: FIRM TRANSP - LARGE | F31: ='Rate FT-LG'!X71 -> 1092 | H31: ='Rate FT-LG'!Z71 -> 2736182 | J31: =ROUND((L31/H31),4) -> 1.9926 | L31: ='Rate FT-LG'!AD71 -> 5452147 | N31: =ROUND((L31/L$33)*100,2) -> 75.36 | P31: ='Rate FT-LG'!AH71 -> 1454008 | R31: =IF(L31=0,"0.0 ",ROUND((P31/L31)*100,1)) -> 26.7 | T31: ='Rate FT-LG'!AL71 -> -7935 | V31: ='Rate FT-LG'!AN71 -> 5444212 | X31: =IF(V31=0,"0.0 ",ROUND((P31/V31)*100,1)) -> 26.7
A32: 11 | C32: IT | D32: INTERRUPTIBLE TRANSP | F32: ='Rate IT'!X74 -> 264 | H32: ='Rate IT'!Z74 -> 1672200 | J32: =ROUND((L32/H32),4) -> 1.0661 | L32: ='Rate IT'!AD74 -> 1782710 | N32: =ROUND((L32/L$33)*100,2) -> 24.64 | P32: ='Rate IT'!AH74 -> 442297 | R32: =IF(L32=0,"0.0 ",ROUND((P32/L32)*100,1)) -> 24.8 | T32: ='Rate IT'!AL74 -> 0 | V32: ='Rate IT'!AN74 -> 1782710 | X32: =IF(V32=0,"0.0 ",ROUND((P32/V32)*100,1)) -> 24.8
A33: 12 | C33: TOTAL TRANSP SERVICE | F33: =SUM(F31:F32) -> 1356 | H33: =SUM(H31:H32) -> 4408382 | J33: =ROUND((L33/H33),4) -> 1.6412 | L33: =SUM(L31:L32) -> 7234857 | N33: =ROUND((L33/L$48)*100,2) -> 9.74 | P33: =SUM(P31:P32) -> 1896305 | R33: =IF(L33=0,"0.0 ",ROUND((P33/L33)*100,1)) -> 26.2 | T33: =SUM(T31:T32) -> -7935 | V33: =SUM(V31:V32) -> 7226922 | X33: =IF(V33=0,"0.0 ",ROUND((P33/V33)*100,1)) -> 26.2
A34: 13 | C34: TOTAL THROUGHPUT | F34: =F28+F33 -> 1215429 | H34: =H28+H33 -> 14367394 | J34: =ROUND((L34/H34),4) -> 5.1485 | L34: =L28+L33 -> 73970812 | N34: =N28+N33 -> 99.57 | P34: =P28+P33 -> 15332772 | R34: =IF(L34=0,"0.0 ",ROUND((P34/L34)*100,1)) -> 20.7 | T34: =T28+T33 -> 40445571 | V34: =V28+V33 -> 114416383 | X34: =IF(V34=0,"0.0 ",ROUND((P34/V34)*100,1)) -> 13.4
A36: 14 | C36: MISCELLANEOUS REVENUES:
A37: 15 | C37: LATE PAYMENT CHARGES | F37: 0 | H37: 0 | L37: 0 | N37: =ROUND((L37/L$46)*100,2) -> 0 | P37: ='SCH M-2.3'!L37-'SCH M-2.2'!L37 -> 0 | T37: 0 | V37: =L37+T37 -> 0
A38: 16 | C38: BAD CHECK CHARGES | F38: 0 | H38: 0 | L38: 27420 | N38: 8.54 | P38: ='SCH M-2.3'!L38-'SCH M-2.2'!L38 -> 0 | T38: 0 | V38: 27420
A39: 17 | C39: RECONNECTION CHARGES | F39: 0 | H39: 0 | L39: 23364 | N39: 7.28 | P39: ='SCH M-2.3'!L39-'SCH M-2.2'!L39 -> 4673 | T39: 0 | V39: 23364
A40: 18 | C40: FIELD COLLECTION CHARGES | F40: 0 | H40: 0 | L40: 684 | N40: 0.21 | P40: ='SCH M-2.3'!L40-'SCH M-2.2'!L40 -> 0 | T40: 0 | V40: 684
A41: 19 | C41: INTERDEPARTMENTAL | F41: 0 | H41: 4158 | L41: =ROUND(V41-(H41*EGC),0) -> 10875 | N41: =ROUND((L41/L$46)*100,2) -> 3.39 | P41: ='SCH M-2.3'!L41-'SCH M-2.2'!L41 -> 5059.910029 | T41: =V41-L41 -> 16890 | V41: 27765
A42: 20 | C42: MINIMUM USE CONTRACT | F42: 0 | H42: 0 | L42: 258228 | N42: 80.42 | P42: ='SCH M-2.3'!L42-'SCH M-2.2'!L42 -> -114674.3256 | T42: 0 | V42: 258228
A43: 21 | C43: REVENUE TRANSP OF GAS-INTERCO | F43: 0 | H43: 0 | L43: 0 | N43: 0 | P43: ='SCH M-2.3'!L43-'SCH M-2.2'!L43 -> 0 | T43: 0 | V43: 0
A44: 22 | C44: PROVISION FOR RATE REFUNDS | F44: 0 | H44: 0 | L44: 0 | N44: 0 | P44: ='SCH M-2.3'!L44-'SCH M-2.2'!L44 -> 0 | T44: 0 | V44: =L44+T44 -> 0
A45: 23 | C45: OTHER MISC | F45: 0 | H45: 0 | L45: 528 | N45: 0.16 | P45: ='SCH M-2.3'!L45-'SCH M-2.2'!L45 -> 0 | T45: 0 | V45: 528
A46: 24 | C46: TOTAL MISC | F46: =SUM(F37:F45) -> 0 | H46: =SUM(H37:H45) -> 4158 | L46: =SUM(L37:L45) -> 321099 | N46: =ROUND((L46/L$48)*100,2) -> 0.43 | P46: =SUM(P37:P45) -> -104941.4156 | R46: =IF(L46=0,"0.0 ",ROUND((P46/L46)*100,1)) -> -32.7 | T46: =SUM(T37:T45) -> 16890 | V46: =SUM(V37:V45) -> 337989 | X46: =IF(V46=0,"0.0 ",ROUND((P46/V46)*100,1)) -> -31
A48: 25 | C48: TOTAL COMPANY | F48: =F28+F33+F46 -> 1215429 | H48: =H28+H33+H46 -> 14371552 | J48: =ROUND((L48/H48),4) -> 5.1694 | L48: =L28+L33+L46 -> 74291911 | N48: 100 | P48: =P28+P33+P46 -> 15227830.58 | R48: =IF(L48=0,"0.0 ",ROUND((P48/L48)*100,1)) -> 20.5 | T48: =T28+T33+T46 -> 40462461 | V48: =V28+V33+V46 -> 114754372 | X48: =IF(V48=0,"0.0 ",ROUND((P48/V48)*100,1)) -> 13.3
C50: (1) DETAIL CONTAINED ON SCHEDULES M-2.2, PAGES 2 THROUGH 7.
C51: (2) REFLECTS NORMALIZED VOLUMES.
C52: ="(3) REFLECTS AVERAGE EXPECTED GAS COST OF "&TEXT(EGC,"$0.000")&"/MCF." -> (3) REFLECTS AVERAGE EXPECTED GAS COST OF $4.062/MCF.

Sheet SCH M-2.3
A1: =COMPANY -> DUKE ENERGY KENTUCKY
A2: =CASE -> CASE NO. 2021-00190
A3: ANNUALIZED REVENUES AT PROPOSED VS. MOST CURRENT RATES
A4: =TIME_PERIOD -> FOR THE TWELVE MONTHS ENDED DECEMBER 31, 2022
A5: =SERV_TYPE -> (GAS SERVICE)
A6: =DATA_TYPE -> DATA: ___ BASE PERIOD _X_FORECASTED PERIOD | R6: SCHEDULE M-2.3
A7: =FILING_TYPE -> TYPE OF FILING: _X_ ORIGINAL ___UPDATED ___ REVISED | R7: PAGE 1 OF 7
A8: WORK PAPER REFERENCE NO(S).: | R8: WITNESS:
A9: =TIME -> 12 MONTHS FORECASTED | F9: =INPUT!D4 -> INCLUDES ALL RIDERS | R9: =WIT -> J.L. Kern
A10: PROPOSED ANNUALIZED
L12: PROPOSED | N12: % OF REV TO | R12: PROPOSED
L13: REVENUE LESS | N13: TOTAL LESS | R13: TOTAL
A14: LINE | C14: RATE | D14: CLASS / | F14: CUSTOMER | J14: PROPOSED | L14: GAS COST | N14: GAS COST | P14: GAS COST | R14: REVENUE
A15: NO. | C15: CODE | D15: DESCRIPTION | F15: BILLS(1) | H15: SALES(2) | J15: RATES | L15: REVENUE(4) | N15: REVENUE | P15: REVENUE(3) | R15: (F + H)
C16: (A) | D16: (B) | F16: (C) | H16: (D) | J16: (E) | L16: (F) | N16: (G) | P16: (H) | R16: (I)
H18: (MCF) | J18: ($/MCF) | L18: ($) | N18: (%) | P18: ($) | R18: ($)
A19: 1 | C19: SALES SERVICE:
A20: 2 | C20: RS | D20: RESIDENTIAL | F20: ='Rate RS'!F38 -> 1130041 | H20: ='Rate RS'!H38 -> 6481298 | J20: =IF(F20=0,"0.0 ",ROUND((L20/H20),4)) -> 9.3562 | L20: ='Rate RS'!L38 -> 60640349 | N20: =ROUND((L20/L$21)*100,2) -> 100 | P20: ='Rate RS'!P38 -> 26327032 | R20: ='Rate RS'!R38 -> 86967381
A21: 3 | D21: TOTAL RS | F21: =F20 -> 1130041 | H21: =H20 -> 6481298 | J21: =IF(F21=0,"0.0 ",ROUND((L21/H21),4)) -> 9.3562 | L21: =L20 -> 60640349 | N21: =ROUND((L21/L$48)*100,2) -> 67.74 | P21: =P20 -> 26327032 | R21: =R20 -> 86967381
A23: 4 | C23: GS | D23: COMMERCIAL | F23: ='Rate GS COM'!F37 -> 78612 | H23: ='Rate GS COM'!H37 -> 2857007 | J23: =IF(F23=0,"0.0 ",ROUND((L23/H23),4)) -> 5.8108 | L23: ='Rate GS COM'!L37 -> 16601495 | N23: =ROUND((L23/L$26)*100,2) -> 85 | P23: ='Rate GS COM'!P37 -> 11605162 | R23: ='Rate GS COM'!R37 -> 28206657
A24: 5 | C24: GS | D24: INDUSTRIAL | F24: ='Rate GS IND'!F37 -> 2879 | H24: ='Rate GS IND'!H37 -> 331485 | J24: =IF(F24=0,"0.0 ",ROUND((L24/H24),4)) -> 4.7186 | L24: ='Rate GS IND'!L37 -> 1564158 | N24: =ROUND((L24/L$26)*100,2) -> 8.01 | P24: ='Rate GS IND'!P37 -> 1346492 | R24: ='Rate GS IND'!R37 -> 2910650
A25: 6 | C25: GS | D25: OTH PUB AUTH | F25: ='Rate GS OPA'!F37 -> 2541 | H25: ='Rate GS OPA'!H37 -> 289222 | J25: =IF(F25=0,"0.0 ",ROUND((L25/H25),4)) -> 4.7245 | L25: ='Rate GS OPA'!L37 -> 1366420 | N25: =ROUND((L25/L$26)*100,2) -> 7 | P25: ='Rate GS OPA'!P37 -> 1174820 | R25: ='Rate GS OPA'!R37 -> 2541240
A26: 7 | D26: TOTAL GS | F26: =SUM(F23:F25) -> 84032 | H26: =SUM(H23:H25) -> 3477714 | J26: =IF(F26=0,"0.0 ",ROUND((L26/H26),4)) -> 5.6164 | L26: =SUM(L23:L25) -> 19532073 | N26: =ROUND((L26/L$48)*100,2) -> 21.82 | P26: =SUM(P23:P25) -> 14126474 | R26: =SUM(R23:R25) -> 33658547
A28: 8 | C28: TOTAL SALES SERVICE | F28: =F21+F26 -> 1214073 | H28: =H21+H26 -> 9959012 | J28: =IF(F28=0,"0.0 ",ROUND((L28/H28),4)) -> 8.0502 | L28: =L21+L26 -> 80172422 | N28: =ROUND((L28/L$48)*100,2) -> 89.56 | P28: =P21+P26 -> 40453506 | R28: =R21+R26 -> 120625928
A30: 9 | C30: TRANSPORTATION SERVICE:
A31: 10 | C31: FT-L | D31: FIRM TRANSP - LARGE | F31: ='Rate FT-LG'!F34 -> 1092 | H31: ='Rate FT-LG'!H34 -> 2736182 | J31: =IF(F31=0,"0.0 ",ROUND((L31/H31),4)) -> 2.524 | L31: ='Rate FT-LG'!L34 -> 6906155 | N31: =ROUND((L31/L$33)*100,2) -> 75.63 | P31: ='Rate FT-LG'!P34 -> -7935 | R31: ='Rate FT-LG'!R34 -> 6898220
A32: 11 | C32: IT | D32: INTERRUPTIBLE TRANSP | F32: ='Rate IT'!F34 -> 264 | H32: ='Rate IT'!H34 -> 1672200 | J32: =IF(F32=0,"0.0 ",ROUND((L32/H32),4)) -> 1.3306 | L32: ='Rate IT'!L34 -> 2225007 | N32: =ROUND((L32/L$33)*100,2) -> 24.37 | P32: ='Rate IT'!P34 -> 0 | R32: ='Rate IT'!R34 -> 2225007
A33: 12 | C33: TOTAL TRANSP SERVICE | F33: =SUM(F31:F32) -> 1356 | H33: =SUM(H31:H32) -> 4408382 | J33: =IF(F33=0,"0.0 ",ROUND((L33/H33),4)) -> 2.0713 | L33: =SUM(L31:L32) -> 9131162 | N33: =ROUND((L33/L$48)*100,2) -> 10.2 | P33: =SUM(P31:P32) -> -7935 | R33: =SUM(R31:R32) -> 9123227
A34: 13 | C34: TOTAL THROUGHPUT | F34: =F28+F33 -> 1215429 | H34: =H28+H33 -> 14367394 | J34: =IF(F34=0,"0.0 ",ROUND((L34/H34),4)) -> 6.2157 | L34: =L28+L33 -> 89303584 | N34: =N28+N33 -> 99.76 | P34: =P28+P33 -> 40445571 | R34: =R28+R33 -> 129749155
A36: 14 | C36: MISCELLANEOUS REVENUES:
A37: 15 | C37: LATE PAYMENT CHARGES | F37: 0 | H37: 0 | L37: 0 | N37: =ROUND((L37/L$46)*100,2) -> 0 | P37: 0 | R37: =L37+P37 -> 0
A38: 16 | C38: BAD CHECK CHARGES | F38: 0 | H38: 0 | L38: ='SCH M-2.2'!L38 -> 27420 | N38: 12.69 | P38: 0 | R38: 27420
A39: 17 | C39: RECONNECTION CHARGES | F39: 0 | H39: 0 | L39: ='SCH M-2.2'!L39+4673 -> 28037 | N39: 12.97 | P39: 0 | R39: 28037
A40: 18 | C40: FIELD COLLECTION CHARGES | F40: 0 | H40: 0 | L40: ='SCH M-2.2'!L40 -> 684 | N40: 0.32 | P40: 0 | R40: 684
A41: 19 | C41: INTERDEPARTMENTAL | F41: ='SCH M-2.2'!F41 -> 0 | H41: ='SCH M-2.2'!H41 -> 4158 | L41: =R41-P41 -> 15934.91003 | N41: 7.37 | P41: ='SCH M-2.2'!T41 -> 16890 | R41: ='Proposed Rates'!G30 -> 32824.91003
A42: 20 | C42: MINIMUM USE CONTRACT | F42: ='SCH M-2.2'!F42 -> 0 | H42: ='SCH M-2.2'!H42 -> 0 | L42: ='Proposed Rates'!K31 -> 143553.6744 | N42: 66.41 | P42: 0 | R42: 143553.6744
A43: 21 | C43: REVENUE TRANSP OF GAS-INTERCO | F43: 0 | H43: ='SCH M-2.2'!H43 -> 0 | L43: ='SCH M-2.2'!L43 -> 0 | N43: 0 | P43: 0 | R43: 0
A44: 22 | C44: PROVISION FOR RATE REFUNDS | F44: 0 | H44: ='SCH M-2.2'!H44 -> 0 | L44: ='SCH M-2.2'!L44 -> 0 | N44: 0 | P44: 0 | R44: 0
A45: 23 | C45: OTHER MISC | F45: 0 | H45: 0 | L45: ='SCH M-2.2'!L45 -> 528 | N45: 0.24 | P45: 0 | R45: 528
A46: 24 | C46: TOTAL MISC | F46: =SUM(F37:F45) -> 0 | H46: =SUM(H37:H45) -> 4158 | L46: =SUM(L37:L45) -> 216157.5844 | N46: =ROUND((L46/L$48)*100,2) -> 0.24 | P46: =SUM(P37:P45) -> 16890 | R46: =SUM(R37:R45) -> 233047.5844
A48: 25 | C48: TOTAL COMPANY | F48: =F28+F33+F46 -> 1215429 | H48: =H28+H33+H46 -> 14371552 | J48: =IF(F48=0,"0.0 ",ROUND((L48/H48),4)) -> 6.229 | L48: =L28+L33+L46 -> 89519741.58 | N48: 100 | P48: =P28+P33+P46 -> 40462461 | R48: =R28+R33+R46 -> 129982202.6
C50: (1) DETAIL CONTAINED ON SCHEDULES M-2.3, PAGES 2 THROUGH 7.
C51: (2) REFLECTS NORMALIZED VOLUMES.
C52: ="(3) REFLECTS AVERAGE EXPECTED GAS COST OF "&TEXT(EGC,"$0.000")&"/MCF." -> (3) REFLECTS AVERAGE EXPECTED GAS COST OF $4.062/MCF.

Sheet Rate RS
A1: =COMPANY -> DUKE ENERGY KENTUCKY
A2: =CASE -> CASE NO. 2021-00190
A3: ANNUALIZED REVENUES AT PROPOSED VS. MOST CURRENT RATES
A4: =TIME_PERIOD -> FOR THE TWELVE MONTHS ENDED DECEMBER 31, 2022
A5: =SERV_TYPE -> (GAS SERVICE)
A6: =DATA_TYPE -> DATA: ___ BASE PERIOD _X_FORECASTED PERIOD | R6: SCHEDULE M-2.3
A7: =FILING_TYPE -> TYPE OF FILING: _X_ ORIGINAL ___UPDATED ___ REVISED | R7: PAGE 2 OF 7
A8: WORK PAPER REFERENCE NO(S).: | R8: WITNESS:
A9: =TIME -> 12 MONTHS FORECASTED | R9: =WIT -> J.L. Kern
A10: PROPOSED ANNUALIZED
L12: PROPOSED | N12: % OF REV TO | R12: PROPOSED
L13: REVENUE LESS | N13: TOTAL LESS | R13: TOTAL
A14: LINE | C14: RATE | D14: CLASS / | F14: CUSTOMER | J14: PROPOSED | L14: GAS COST | N14: GAS COST | P14: GAS COST | R14: REVENUE
A15: NO. | C15: CODE | D15: DESCRIPTION | F15: BILLS(1) | H15: SALES(2) | J15: RATES | L15: REVENUE | N15: REVENUE | P15: REVENUE(3) | R15: (F + H)
C16: (A) | D16: (B) | F16: (C) | H16: (D) | J16: (E) | L16: (F) | N16: (G) | P16: (H) | R16: (I)
H18: (MCF) | J18: ($/MCF) | L18: ($) | N18: (%) | P18: ($) | R18: ($)
A19: 1 | C19: RS | D19: RESIDENTIAL
A21: 2 | C21: CUSTOMER CHARGE:
A22: 3 | C22: RESIDENTIAL
A23: 4 | C23: TOTAL MONTHLY BILLS x :
A24: 5 | C24: CUSTOMER CHARGE PER MONTH | F24: 1130041 | J24: =PRO_RS_CUST -> 19 | L24: =ROUND(F24*J24,0) -> 21470779 | N24: =ROUND((L24/$L$38)*100,1) -> 35.4 | R24: =L24+P24 -> 21470779
A26: 6 | C26: COMMODITY CHARGE:
A27: 7 | C27: ALL CONSUMPTION | H27: 6481298 | I27: 2.64 | J27: =PRO_RS_COM -> 5.533 | L27: =ROUND((H27*J27),0) -> 35861022 | N27: =ROUND((L27/$L$38)*100,1) -> 59.1 | P27: =ROUND(H27*EGC,0) -> 26327032 | R27: =L27+P27 -> 62188054
A29: 8 | C29: RATE RS EXCLUDING RIDERS | F29: =F24 -> 1130041 | H29: =H27 -> 6481298 | L29: =SUM(L24:L27) -> 57331801 | N29: =ROUND((L29/$L$38)*100,1) -> 94.5 | P29: =SUM(P24:P27) -> 26327032 | R29: =SUM(R24:R27) -> 83658833
A31: 9 | C31: RIDERS:
A32: 10 | C32: HOME ENERGY ASSISTANCE PROGRAM (HEA) | J32: =PRO_RS_HEA -> 0.3 | L32: =ROUND(F24*PRO_RS_HEA,0) -> 339012 | N32: =ROUND((L32/$L$38)*100,1) -> 0.6 | R32: =L32+P32 -> 339012
A33: 11 | C33: DEMAND SIDE MANAGEMENT RATE (DSMR) | J33: =PRO_RS_DSM -> 0.45817 | L33: =ROUND(H27*J33,0) -> 2969536 | N33: =ROUND((L33/$L$38)*100,1) -> 4.9 | R33: =L33+P33 -> 2969536
A34: 12 | C34: WEATHER NORMALIZATION ADJUSTMENT (WNA) | J34: 0 | L34: =ROUND(H29*J34,0) -> 0 | N34: =ROUND((L34/$L$38)*100,1) -> 0 | R34: =L34+P34 -> 0
A36: 13 | C36: TOTAL RIDERS | L36: =SUM(L32:L34) -> 3308548 | N36: =ROUND((L36/$L$38)*100,1) -> 5.5 | R36: =SUM(R32:R34) -> 3308548
A38: 14 | C38: TOTAL RATE RS RESIDENTIAL INCLUDING RIDERS | F38: =F24 -> 1130041 | H38: =H27 -> 6481298 | L38: =L29+L36 -> 60640349 | N38: =SUM(N29+N36) -> 100 | P38: =P29+P36 -> 26327032 | R38: =R29+R36 -> 86967381
C40: (1) BILLS THAT TERMINATE IN RESPECTIVE RATE STEPS.
C41: (2) REFLECTS NORMALIZED VOLUMES.
C42: ="(3) REFLECTS AVERAGE EXPECTED GAS COST OF "&TEXT(EGC,"$0.000")&"/MCF." -> (3) REFLECTS AVERAGE EXPECTED GAS COST OF $4.062/MCF. | T42: =COMPANY -> DUKE ENERGY KENTUCKY
T43: =CASE -> CASE NO. 2021-00190
T44: ANNUALIZED TEST YEAR REVENUES AT PROPOSED VS. MOST CURRENT RATES
T45: =TIME_PERIOD -> FOR THE TWELVE MONTHS ENDED DECEMBER 31, 2022
T46: =SERV_TYPE -> (GAS SERVICE)
T47: =DATA_TYPE -> DATA: ___ BASE PERIOD _X_FORECASTED PERIOD | AN47: SCHEDULE M-2.2
T48: =FILING_TYPE -> TYPE OF FILING: _X_ ORIGINAL ___UPDATED ___ REVISED | AN48: =R7 -> PAGE 2 OF 7
T49: WORK PAPER REFERENCE NO(S).: | AN49: WITNESS:
T50: =TIME -> 12 MONTHS FORECASTED | AN50: =WIT -> J.L. Kern
AD51: CURRENT ANNUALIZED
AD53: CURRENT | AF53: % OF REV TO | AH53: REVENUE | AJ53: % INCR IN | AN53: CURRENT | AP53: TOTAL
AB54: MOST | AD54: REVENUE LESS | AF54: TOTAL LESS | AH54: INCR LESS | AJ54: REV LESS | AN54: TOTAL | AP54: REVENUE
T55: LINE | V55: RATE | W55: CLASS / | X55: CUSTOMER | AB55: CURRENT | AD55: GAS COST | AF55: GAS COST | AH55: GAS COST REV | AJ55: GAS COST REV | AL55: GAS COST | AN55: REVENUE | AP55: % INCREASE
T56: NO. | V56: CODE | W56: DESCRIPTION | X56: BILLS(1) | Z56: SALES(2) | AB56: RATES | AD56: REVENUE | AF56: REVENUE | AH56: (F - K) | AJ56: (M / K) | AL56: REVENUE(3) | AN56: (K + H) | AP56: (M / K1)
V57: (A) | W57: (B) | X57: (C) | Z57: (D) | AB57: (J) | AD57: (K) | AF57: (L) | AH57: (M) | AJ57: (N) | AL57: (H) | AN57: (K1) | AP57: (O)
Z59: (MCF) | AB59: ($/MCF) | AD59: ($) | AF59: (%) | AH59: ($) | AJ59: (%) | AL59: ($) | AN59: ($) | AP59: (%)
T60: 1 | V60: RS | W60: RESIDENTIAL
T62: 2 | V62: CUSTOMER CHARGE:
T63: 3 | V63: RESIDENTIAL
T64: 4 | V64: TOTAL MONTHLY BILLS x :
T65: 5 | V65: CUSTOMER CHARGE PER MONTH | X65: =F24 -> 1130041 | AB65: =CUR_RS_CUST -> 16.5 | AD65: =ROUND(X65*AB65,0) -> 18645677 | AF65: =ROUND((AD65/$AD$79)*100,1) -> 35.6 | AH65: =L24-AD65 -> 2825102 | AJ65: =IF(AD65=0,"0.0 ",ROUND((AH65/AD65)*100,1)) -> 15.2 | AN65: =AD65+AL65 -> 18645677 | AP65: =IF(AN65=0,"0.0 ",ROUND((AH65/AN65)*100,1)) -> 15.2
T67: 6 | V67: COMMODITY CHARGE:
T68: 7 | V68: ALL CONSUMPTION | Z68: =H27 -> 6481298 | AB68: =CUR_RS -> 4.692 | AD68: =ROUND((Z68*AB68),0) -> 30410250 | AF68: =ROUND((AD68/$AD$79)*100,1) -> 58.1 | AH68: =L27-AD68 -> 5450772 | AJ68: =IF(AD68=0,"0.0 ",ROUND((AH68/AD68)*100,1)) -> 17.9 | AL68: =P27 -> 26327032 | AN68: =AD68+AL68 -> 56737282 | AP68: =IF(AN68=0,"0.0 ",ROUND((AH68/AN68)*100,1)) -> 9.6
T70: 8 | V70: RATE RS EXCLUDING RIDERS | X70: =X65 -> 1130041 | Z70: =Z68 -> 6481298 | AD70: =SUM(AD65:AD68) -> 49055927 | AF70: =ROUND((AD70/$AD$79)*100,1) -> 93.7 | AH70: =SUM(AH65:AH68) -> 8275874 | AJ70: =IF(AD70=0,"0.0 ",ROUND((AH70/AD70)*100,1)) -> 16.9 | AL70: =SUM(AL65:AL68) -> 26327032 | AN70: =SUM(AN65:AN68) -> 75382959 | AP70: =IF(AN70=0,"0.0 ",ROUND((AH70/AN70)*100,1)) -> 11
T72: 9 | V72: RIDERS:
T73: 10 | V73: HOME ENERGY ASSISTANCE PROGRAM (HEA) | AB73: =CUR_RS_HEA -> 0.3 | AD73: =ROUND(X65*CUR_RS_HEA,0) -> 339012 | AF73: =ROUND((AD73/$AD$79)*100,1) -> 0.6 | AH73: =L32-AD73 -> 0 | AJ73: =IF(AD73=0,"0.0 ",ROUND((AH73/AD73)*100,1)) -> 0 | AN73: =AD73+AL73 -> 339012 | AP73: =IF(AN73=0,"0.0 ",ROUND((AH73/AN73)*100,1)) -> 0
T74: 11 | V74: DEMAND SIDE MANAGEMENT RATE (DSMR) | AB74: =CUR_RS_DSM -> 0.45817 | AD74: =ROUND(Z68*AB74,0) -> 2969536 | AF74: =ROUND((AD74/$AD$79)*100,1) -> 5.7 | AH74: =L33-AD74 -> 0 | AJ74: =IF(AD74=0,"0.0 ",ROUND((AH74/AD74)*100,1)) -> 0 | AN74: =AD74+AL74 -> 2969536 | AP74: =IF(AN74=0,"0.0 ",ROUND((AH74/AN74)*100,1)) -> 0
T75: =A34 -> 12 | V75: WEATHER NORMALIZATION ADJUSTMENT (WNA) | AB75: 0 | AD75: =ROUND(Z70*AB75,0) -> 0 | AF75: =ROUND((AD75/$AD$79)*100,1) -> 0 | AH75: =L34-AD75 -> 0 | AJ75: =IF(AD75=0,"0.0 ",ROUND((AH75/AD75)*100,1)) -> 0.0 | AN75: =AD75+AL75 -> 0 | AP75: =IF(AN75=0,"0.0 ",ROUND((AH75/AN75)*100,1)) -> 0.0
T77: =A36 -> 13 | V77: TOTAL RIDERS | AD77: =SUM(AD73:AD75) -> 3308548 | AF77: =ROUND((AD77/$AD$79)*100,1) -> 6.3 | AH77: =SUM(AH73:AH75) -> 0 | AJ77: =IF(AD77=0,"0.0 ",ROUND((AH77/AD77)*100,1)) -> 0 | AN77: =SUM(AN73:AN75) -> 3308548 | AP77: =IF(AN77=0,"0.0 ",ROUND((AH77/AN77)*100,1)) -> 0
T79: =A38 -> 14 | V79: TOTAL RATE RS RESIDENTIAL INCLUDING RIDERS | X79: =X65 -> 1130041 | Z79: =Z68 -> 6481298 | AD79: =AD70+AD77 -> 52364475 | AF79: =SUM(AF70+AF77) -> 100 | AH79: =AH70+AH77 -> 8275874 | AJ79: =IF(AD79=0,"0.0 ",ROUND((AH79/AD79)*100,1)) -> 15.8 | AL79: =P38 -> 26327032 | AN79: =AN70+AN77 -> 78691507 | AP79: =IF(AN79=0,"0.0 ",ROUND((AH79/AN79)*100,1)) -> 10.5
V81: (1) BILLS THAT TERMINATE IN RESPECTIVE RATE STEPS.
V82: (2) REFLECTS NORMALIZED VOLUMES.
V83: ="(3) REFLECTS AVERAGE EXPECTED GAS COST OF "&TEXT(EGC,"$0.000")&"/MCF." -> (3) REFLECTS AVERAGE EXPECTED GAS COST OF $4.062/MCF.

Sheet Rate GS COM
A1: =COMPANY -> DUKE ENERGY KENTUCKY
A2: =CASE -> CASE NO. 2021-00190
A3: ANNUALIZED REVENUES AT PROPOSED VS. MOST CURRENT RATES
A4: =TIME_PERIOD -> FOR THE TWELVE MONTHS ENDED DECEMBER 31, 2022
A5: =SERV_TYPE -> (GAS SERVICE)
A6: =DATA_TYPE -> DATA: ___ BASE PERIOD _X_FORECASTED PERIOD | R6: SCHEDULE M-2.3
A7: =FILING_TYPE -> TYPE OF FILING: _X_ ORIGINAL ___UPDATED ___ REVISED | R7: PAGE 3 OF 7
A8: WORK PAPER REFERENCE NO(S).: | R8: WITNESS:
A9: =TIME -> 12 MONTHS FORECASTED | R9: =WIT -> J.L. Kern
A10: PROPOSED ANNUALIZED
L12: PROPOSED | N12: % OF REV TO | R12: PROPOSED
L13: REVENUE LESS | N13: TOTAL LESS | R13: TOTAL
A14: LINE | C14: RATE | D14: CLASS / | F14: CUSTOMER | J14: PROPOSED | L14: GAS COST | N14: GAS COST | P14: GAS COST | R14: REVENUE
A15: NO. | C15: CODE | D15: DESCRIPTION | F15: BILLS(1) | H15: SALES(2) | J15: RATES | L15: REVENUE | N15: REVENUE | P15: REVENUE(3) | R15: (F + H)
C16: (A) | D16: (B) | F16: (C) | H16: (D) | J16: (E) | L16: (F) | N16: (G) | P16: (H) | R16: (I)
H18: (MCF) | J18: ($/MCF) | L18: ($) | N18: (%) | P18: ($) | R18: ($)
A19: 1 | C19: GS | D19: COMMERCIAL
A21: 2 | C21: CUSTOMER CHARGE:
A22: 3 | C22: NON-RESIDENTIAL
A23: 4 | C23: TOTAL MONTHLY BILLS x :
A24: 5 | C24: CUSTOMER CHARGE PER MONTH | F24: 78612 | J24: =PRO_GS_CUST -> 58 | L24: =ROUND(F24*J24,0) -> 4559496 | N24: =ROUND((L24/$L$37)*100,1) -> 27.5 | R24: =L24+P24 -> 4559496
A26: 6 | C26: COMMODITY CHARGE:
A27: 7 | C27: ALL CONSUMPTION | H27: 2857007 | J27: =PRO_GS -> 4.2149 | L27: =ROUND((H27*J27),0) -> 12041999 | N27: =ROUND((L27/$L$37)*100,1) -> 72.5 | P27: =ROUND(H27*EGC,0) -> 11605162 | R27: =L27+P27 -> 23647161
A29: 8 | C29: RATE GS COMMERCIAL EXCLUDING RIDERS | F29: =F24 -> 78612 | H29: =H27 -> 2857007 | L29: =SUM(L24:L27) -> 16601495 | N29: =ROUND((L29/$L$37)*100,1) -> 100 | P29: =SUM(P24:P27) -> 11605162 | R29: =SUM(R24:R27) -> 28206657
A31: 9 | C31: RIDERS:
A32: 10 | C32: DEMAND SIDE MANAGEMENT RATE (DSMR) | J32: =PRO_GS_DSM -> 0 | L32: =ROUND(H27*J32,0) -> 0 | N32: =ROUND((L32/$L$37)*100,1) -> 0 | R32: =L32+P32 -> 0
A33: 11 | C33: WEATHER NORMALIZATION ADJUSTMENT (WNA) | J33: 0 | L33: =ROUND(H29*J33,0) -> 0 | N33: =ROUND((L33/$L$37)*100,1) -> 0 | R33: =L33+P33 -> 0
A35: 12 | C35: TOTAL RIDERS | L35: =SUM(L31:L33) -> 0 | N35: =ROUND((L35/$L$37)*100,1) -> 0 | R35: =SUM(R31:R33) -> 0
A37: 13 | C37: TOTAL RATE GS COMMERCIAL INCLUDING RIDERS | F37: =F24 -> 78612 | H37: =H27 -> 2857007 | L37: =L29+L35 -> 16601495 | N37: =N29+N35 -> 100 | P37: =P29+P35 -> 11605162 | R37: =R29+R35 -> 28206657
C39: (1) BILLS THAT TERMINATE IN RESPECTIVE RATE STEPS.
C40: (2) REFLECTS NORMALIZED VOLUMES.
C41: ="(3) REFLECTS AVERAGE EXPECTED GAS COST OF "&TEXT(EGC,"$0.000")&"/MCF." -> (3) REFLECTS AVERAGE EXPECTED GAS COST OF $4.062/MCF. | T41: =COMPANY -> DUKE ENERGY KENTUCKY
T42: =CASE -> CASE NO. 2021-00190
T43: ANNUALIZED TEST YEAR REVENUES AT PROPOSED VS. MOST CURRENT RATES
T44: =TIME_PERIOD -> FOR THE TWELVE MONTHS ENDED DECEMBER 31, 2022
T45: =SERV_TYPE -> (GAS SERVICE)
T46: =DATA_TYPE -> DATA: ___ BASE PERIOD _X_FORECASTED PERIOD | AN46: SCHEDULE M-2.2
T47: =FILING_TYPE -> TYPE OF FILING: _X_ ORIGINAL ___UPDATED ___ REVISED | AN47: =R7 -> PAGE 3 OF 7
T48: WORK PAPER REFERENCE NO(S).: | AN48: WITNESS:
T49: =TIME -> 12 MONTHS FORECASTED | AN49: =WIT -> J.L. Kern
AD50: CURRENT ANNUALIZED
AD52: CURRENT | AF52: % OF REV TO | AH52: REVENUE | AJ52: % INCR IN | AN52: CURRENT | AP52: TOTAL
AB53: MOST | AD53: REVENUE LESS | AF53: TOTAL LESS | AH53: INCR LESS | AJ53: REV LESS | AN53: TOTAL | AP53: REVENUE
T54: LINE | V54: RATE | W54: CLASS / | X54: CUSTOMER | AB54: CURRENT | AD54: GAS COST | AF54: GAS COST | AH54: GAS COST REV | AJ54: GAS COST REV | AL54: GAS COST | AN54: REVENUE | AP54: % INCREASE
T55: NO. | V55: CODE | W55: DESCRIPTION | X55: BILLS(1) | Z55: SALES(2) | AB55: RATES | AD55: REVENUE | AF55: REVENUE | AH55: (F - K) | AJ55: (M / K) | AL55: REVENUE(3) | AN55: (K + H) | AP55: (M / K1)
V56: (A) | W56: (B) | X56: (C) | Z56: (D) | AB56: (J) | AD56: (K) | AF56: (L) | AH56: (M) | AJ56: (N) | AL56: (H) | AN56: (K1) | AP56: (O)
Z58: (MCF) | AB58: ($/MCF) | AD58: ($) | AF58: (%) | AH58: ($) | AJ58: (%) | AL58: ($) | AN58: ($) | AP58: (%)
T59: 1 | V59: GS | W59: COMMERCIAL
T61: 2 | V61: CUSTOMER CHARGE:
T62: 3 | V62: NON-RESIDENTIAL
T63: 4 | V63: TOTAL MONTHLY BILLS x :
T64: 5 | V64: CUSTOMER CHARGE PER MONTH | X64: =F24 -> 78612 | AB64: =CUR_GS_CUST -> 50 | AD64: =ROUND(X64*AB64,0) -> 3930600 | AF64: =ROUND((AD64/$AD$77)*100,1) -> 32 | AH64: =L24-AD64 -> 628896 | AJ64: =IF(AD64=0,"0.0 ",ROUND((AH64/AD64)*100,1)) -> 16 | AN64: =AD64+AL64 -> 3930600 | AP64: =IF(AN64=0,"0.0 ",ROUND((AH64/AN64)*100,1)) -> 16
T66: 6 | V66: COMMODITY CHARGE:
T67: 7 | V67: ALL CONSUMPTION | Z67: =H27 -> 2857007 | AB67: =CUR_GS -> 2.9243 | AD67: =ROUND((Z67*AB67),0) -> 8354746 | AF67: =ROUND((AD67/$AD$77)*100,1) -> 68 | AH67: =L27-AD67 -> 3687253 | AJ67: =IF(AD67=0,"0.0 ",ROUND((AH67/AD67)*100,1)) -> 44.1 | AL67: =P27 -> 11605162 | AN67: =AD67+AL67 -> 19959908 | AP67: =IF(AN67=0,"0.0 ",ROUND((AH67/AN67)*100,1)) -> 18.5
T69: 8 | V69: RATE GS COMMERCIAL EXCLUDING RIDERS | X69: =X64 -> 78612 | Z69: =Z67 -> 2857007 | AD69: =SUM(AD64:AD67) -> 12285346 | AF69: =ROUND((AD69/$AD$77)*100,1) -> 100 | AH69: =SUM(AH64:AH67) -> 4316149 | AJ69: =IF(AD69=0,"0.0 ",ROUND((AH69/AD69)*100,1)) -> 35.1 | AL69: =SUM(AL64:AL67) -> 11605162 | AN69: =SUM(AN64:AN67) -> 23890508 | AP69: =IF(AN69=0,"0.0 ",ROUND((AH69/AN69)*100,1)) -> 18.1
T71: 9 | V71: RIDERS:
T72: 10 | V72: =C32 -> DEMAND SIDE MANAGEMENT RATE (DSMR) | AB72: =CUR_GS_DSM -> 0 | AD72: =ROUND(Z67*AB72,0) -> 0 | AF72: =ROUND((AD72/$AD$77)*100,1) -> 0 | AH72: =L32-AD72 -> 0 | AJ72: =IF(AD72=0,"0.0 ",ROUND((AH72/AD72)*100,1)) -> 0.0 | AN72: =AD72+AL72 -> 0 | AP72: =IF(AN72=0,"0.0 ",ROUND((AH72/AN72)*100,1)) -> 0.0
T73: =A33 -> 11 | V73: WEATHER NORMALIZATION ADJUSTMENT (WNA) | AB73: 0 | AD73: =ROUND(Z69*AB73,0) -> 0 | AF73: =ROUND((AD73/$AD$77)*100,1) -> 0 | AH73: =L33-AD73 -> 0 | AJ73: =IF(AD73=0,"0.0 ",ROUND((AH73/AD73)*100,1)) -> 0.0 | AN73: =AD73+AL73 -> 0 | AP73: =IF(AN73=0,"0.0 ",ROUND((AH73/AN73)*100,1)) -> 0.0
T75: =A35 -> 12 | V75: TOTAL RIDERS | AD75: =SUM(AD71:AD73) -> 0 | AF75: =ROUND((AD75/$AD$77)*100,1) -> 0 | AH75: =SUM(AH71:AH73) -> 0 | AJ75: =IF(AD75=0,"0.0 ",ROUND((AH75/AD75)*100,1)) -> 0.0 | AN75: =SUM(AN71:AN73) -> 0 | AP75: =IF(AN75=0,"0.0 ",ROUND((AH75/AN75)*100,1)) -> 0.0
T77: =A37 -> 13 | V77: TOTAL RATE GS COMMERCIAL INCLUDING RIDERS | X77: =X64 -> 78612 | Z77: =Z67 -> 2857007 | AD77: =AD69+AD75 -> 12285346 | AF77: =AF69+AF75 -> 100 | AH77: =AH69+AH75 -> 4316149 | AJ77: =IF(AD77=0,"0.0 ",ROUND((AH77/AD77)*100,1)) -> 35.1 | AL77: =P37 -> 11605162 | AN77: =AN69+AN75 -> 23890508 | AP77: =IF(AN77=0,"0.0 ",ROUND((AH77/AN77)*100,1)) -> 18.1
V79: (1) BILLS THAT TERMINATE IN RESPECTIVE RATE STEPS.
V80: (2) REFLECTS NORMALIZED VOLUMES.
V81: ="(3) REFLECTS AVERAGE EXPECTED GAS COST OF "&TEXT(EGC,"$0.000")&"/MCF." -> (3) REFLECTS AVERAGE EXPECTED GAS COST OF $4.062/MCF.
Z198: *** MENU ***
X200: ROUTINE | AD200: ENTER
X201: - | AD201: -
W202: PRINT SCHEDULES E-4 and E-4.1 | AD202: ALT A
W204: PRINT SCHEDULE E-5 | AD204: ALT B
W206: SAVE FILE | X206: (NOTE: MUST USE WHEN SAVING FILE) | AD206: ALT S
W208: GO TO MENU | AD208: ALT M
W210: RANGE NAME INDEX | AD210: ALT I

Sheet Rate GS IND
A1: =COMPANY -> DUKE ENERGY KENTUCKY
A2: =CASE -> CASE NO. 2021-00190
A3: ANNUALIZED REVENUES AT PROPOSED VS. MOST CURRENT RATES
A4: =TIME_PERIOD -> FOR THE TWELVE MONTHS ENDED DECEMBER 31, 2022
A5: =SERV_TYPE -> (GAS SERVICE)
A6: =DATA_TYPE -> DATA: ___ BASE PERIOD _X_FORECASTED PERIOD | R6: SCHEDULE M-2.3
A7: =FILING_TYPE -> TYPE OF FILING: _X_ ORIGINAL ___UPDATED ___ REVISED | R7: PAGE 4 OF 7
A8: WORK PAPER REFERENCE NO(S).: | R8: WITNESS:
A9: =TIME -> 12 MONTHS FORECASTED | R9: =WIT -> J.L. Kern
A10: PROPOSED ANNUALIZED
L12: PROPOSED | N12: % OF REV TO | R12: PROPOSED
L13: REVENUE LESS | N13: TOTAL LESS | R13: TOTAL
A14: LINE | C14: RATE | D14: CLASS / | F14: CUSTOMER | J14: PROPOSED | L14: GAS COST | N14: GAS COST | P14: GAS COST | R14: REVENUE
A15: NO. | C15: CODE | D15: DESCRIPTION | F15: BILLS(1) | H15: SALES(2) | J15: RATES | L15: REVENUE | N15: REVENUE | P15: REVENUE(3) | R15: (F + H)
C16: (A) | D16: (B) | F16: (C) | H16: (D) | J16: (E) | L16: (F) | N16: (G) | P16: (H) | R16: (I)
H18: (MCF) | J18: ($/MCF) | L18: ($) | N18: (%) | P18: ($) | R18: ($)
A19: 1 | C19: GS | D19: INDUSTRIAL
A21: 2 | C21: CUSTOMER CHARGE:
A22: 3 | C22: NON-RESIDENTIAL
A23: 4 | C23: TOTAL MONTHLY BILLS x :
A24: 5 | C24: CUSTOMER CHARGE PER MONTH | F24: 2879 | J24: =PRO_GS_CUST -> 58 | L24: =ROUND(F24*J24,0) -> 166982 | N24: =ROUND((L24/$L$37)*100,1) -> 10.7 | R24: =L24+P24 -> 166982
A26: 6 | C26: COMMODITY CHARGE:
A27: 7 | C27: ALL CONSUMPTION | H27: 331485 | J27: =PRO_GS -> 4.2149 | L27: =ROUND((H27*J27),0) -> 1397176 | N27: =ROUND((L27/$L$37)*100,1) -> 89.3 | P27: =ROUND(EGC*$H27,0) -> 1346492 | R27: =L27+P27 -> 2743668
A29: 8 | C29: RATE GS INDUSTRIAL EXCLUDING RIDERS | F29: =F24 -> 2879 | H29: =H27 -> 331485 | L29: =SUM(L24:L27) -> 1564158 | N29: =ROUND((L29/$L$37)*100,1) -> 100 | P29: =SUM(P24:P27) -> 1346492 | R29: =SUM(R24:R27) -> 2910650
A31: 9 | C31: RIDERS:
A32: 10 | C32: DEMAND SIDE MANAGEMENT RATE (DSMR) | J32: =PRO_GS_DSM -> 0 | L32: =ROUND(H27*J32,0) -> 0 | N32: =ROUND((L32/$L$37)*100,1) -> 0 | R32: =L32+P32 -> 0
A33: 11 | C33: WEATHER NORMALIZATION ADJUSTMENT (WNA) | J33: 0 | L33: =ROUND(H29*J33,0) -> 0 | N33: =ROUND((L33/$L$37)*100,1) -> 0 | R33: =L33+P33 -> 0
A35: 12 | C35: TOTAL RIDERS | L35: =SUM(L31:L33) -> 0 | N35: =ROUND((L35/$L$37)*100,1) -> 0 | R35: =SUM(R31:R33) -> 0
A37: 13 | C37: TOTAL RATE GS INDUSTRIAL INCLUDING RIDERS | F37: =F24 -> 2879 | H37: =H27 -> 331485 | L37: =L29+L35 -> 1564158 | N37: =N29+N35 -> 100 | P37: =P29+P35 -> 1346492 | R37: =R29+R35 -> 2910650
C39: (1) BILLS THAT TERMINATE IN RESPECTIVE RATE STEPS.
C40: (2) REFLECTS NORMALIZED VOLUMES.
C41: ="(3) REFLECTS AVERAGE EXPECTED GAS COST OF "&TEXT(EGC,"$0.000")&"/MCF." -> (3) REFLECTS AVERAGE EXPECTED GAS COST OF $4.062/MCF.
T46: =COMPANY -> DUKE ENERGY KENTUCKY
T47: =CASE -> CASE NO. 2021-00190
T48: ANNUALIZED TEST YEAR REVENUES AT PROPOSED VS. MOST CURRENT RATES
T49: =TIME_PERIOD -> FOR THE TWELVE MONTHS ENDED DECEMBER 31, 2022
T50: =SERV_TYPE -> (GAS SERVICE)
T51: =DATA_TYPE -> DATA: ___ BASE PERIOD _X_FORECASTED PERIOD | AN51: SCHEDULE M-2.2
T52: =FILING_TYPE -> TYPE OF FILING: _X_ ORIGINAL ___UPDATED ___ REVISED | AN52: =R7 -> PAGE 4 OF 7
T53: WORK PAPER REFERENCE NO(S).: | AN53: WITNESS:
T54: =TIME -> 12 MONTHS FORECASTED | AN54: =WIT -> J.L. Kern
T55: CURRENT ANNUALIZED
AD57: CURRENT | AF57: % OF REV TO | AH57: REVENUE | AJ57: % INCR IN | AN57: CURRENT | AP57: TOTAL
AB58: MOST | AD58: REVENUE LESS | AF58: TOTAL LESS | AH58: INCR LESS | AJ58: REV LESS | AN58: TOTAL | AP58: REVENUE
T59: LINE | V59: RATE | W59: CLASS / | X59: CUSTOMER | AB59: CURRENT | AD59: GAS COST | AF59: GAS COST | AH59: GAS COST REV | AJ59: GAS COST REV | AL59: GAS COST | AN59: REVENUE | AP59: % INCREASE
T60: NO. | V60: CODE | W60: DESCRIPTION | X60: BILLS(1) | Z60: SALES(2) | AB60: RATES | AD60: REVENUE | AF60: REVENUE | AH60: (F - K) | AJ60: (M / K) | AL60: REVENUE(3) | AN60: (K + H) | AP60: (M / K1)
V61: (A) | W61: (B) | X61: (C) | Z61: (D) | AB61: (J) | AD61: (K) | AF61: (L) | AH61: (M) | AJ61: (N) | AL61: (H) | AN61: (K1) | AP61: (O)
Z63: (MCF) | AB63: ($/MCF) | AD63: ($) | AF63: (%) | AH63: ($) | AJ63: (%) | AL63: ($) | AN63: ($) | AP63: (%)
T64: 1 | V64: GS | W64: INDUSTRIAL
T66: 2 | V66: CUSTOMER CHARGE:
T67: 3 | V67: NON-RESIDENTIAL
T68: 4 | V68: TOTAL MONTHLY BILLS x :
T69: 5 | V69: CUSTOMER CHARGE PER MONTH | X69: =F24 -> 2879 | AB69: =CUR_GS_CUST -> 50 | AD69: =ROUND(X69*AB69,0) -> 143950 | AF69: =ROUND((AD69/$AD$82)*100,1) -> 12.9 | AH69: =L24-AD69 -> 23032 | AJ69: =IF(AD69=0,"0.0 ",ROUND((AH69/AD69)*100,1)) -> 16 | AN69: =AD69+AL69 -> 143950 | AP69: =IF(AN69=0,"0.0 ",ROUND((AH69/AN69)*100,1)) -> 16
T71: 6 | V71: COMMODITY CHARGE:
T72: 7 | V72: ALL CONSUMPTION | Z72: =H27 -> 331485 | AB72: =CUR_GS -> 2.9243 | AD72: =ROUND((Z72*AB72),0) -> 969362 | AF72: =ROUND((AD72/$AD$82)*100,1) -> 87.1 | AH72: =L27-AD72 -> 427814 | AJ72: =IF(AD72=0,"0.0 ",ROUND((AH72/AD72)*100,1)) -> 44.1 | AL72: =P27 -> 1346492 | AN72: =AD72+AL72 -> 2315854 | AP72: =IF(AN72=0,"0.0 ",ROUND((AH72/AN72)*100,1)) -> 18.5
T74: 8 | V74: RATE GS INDUSTRIAL EXCLUDING RIDERS | X74: =X69 -> 2879 | Z74: =Z72 -> 331485 | AD74: =SUM(AD69:AD72) -> 1113312 | AF74: =ROUND((AD74/$AD$82)*100,1) -> 100 | AH74: =SUM(AH69:AH72) -> 450846 | AJ74: =IF(AD74=0,"0.0 ",ROUND((AH74/AD74)*100,1)) -> 40.5 | AL74: =SUM(AL69:AL72) -> 1346492 | AN74: =SUM(AN69:AN72) -> 2459804 | AP74: =IF(AN74=0,"0.0 ",ROUND((AH74/AN74)*100,1)) -> 18.3
T76: 9 | V76: RIDERS:
T77: 10 | V77: =C37 -> TOTAL RATE GS INDUSTRIAL INCLUDING RIDERS | AB77: =CUR_GS_DSM -> 0 | AD77: =ROUND(Z72*AB77,0) -> 0 | AF77: =ROUND((AD77/$AD$82)*100,1) -> 0 | AH77: =L32-AD77 -> 0 | AJ77: =IF(AD77=0,"0.0 ",ROUND((AH77/AD77)*100,1)) -> 0.0 | AN77: =AD77+AL77 -> 0 | AP77: =IF(AN77=0,"0.0 ",ROUND((AH77/AN77)*100,1)) -> 0.0
T78: =A33 -> 11 | V78: WEATHER NORMALIZATION ADJUSTMENT (WNA) | AB78: 0 | AD78: =ROUND(Z74*AB78,0) -> 0 | AF78: =ROUND((AD78/$AD$82)*100,1) -> 0 | AH78: =L33-AD78 -> 0 | AJ78: =IF(AD78=0,"0.0 ",ROUND((AH78/AD78)*100,1)) -> 0.0 | AN78: =AD78+AL78 -> 0 | AP78: =IF(AN78=0,"0.0 ",ROUND((AH78/AN78)*100,1)) -> 0.0
T80: =A35 -> 12 | V80: TOTAL RIDERS | AD80: =SUM(AD76:AD78) -> 0 | AF80: =ROUND((AD80/$AD$82)*100,1) -> 0 | AH80: =SUM(AH76:AH78) -> 0 | AJ80: =IF(AD80=0,"0.0 ",ROUND((AH80/AD80)*100,1)) -> 0.0 | AN80: =SUM(AN76:AN78) -> 0 | AP80: =IF(AN80=0,"0.0 ",ROUND((AH80/AN80)*100,1)) -> 0.0
T82: =A37 -> 13 | V82: TOTAL RATE GS INDUSTRIAL INCLUDING RIDERS | X82: =X69 -> 2879 | Z82: =Z72 -> 331485 | AD82: =AD74+AD80 -> 1113312 | AF82: =AF74+AF80 -> 100 | AH82: =AH74+AH80 -> 450846 | AJ82: =IF(AD82=0,"0.0 ",ROUND((AH82/AD82)*100,1)) -> 40.5 | AL82: =P37 -> 1346492 | AN82: =AN74+AN80 -> 2459804 | AP82: =IF(AN82=0,"0.0 ",ROUND((AH82/AN82)*100,1)) -> 18.3
V84: (1) BILLS THAT TERMINATE IN RESPECTIVE RATE STEPS.
V85: (2) REFLECTS NORMALIZED VOLUMES.
V86: ="(3) REFLECTS AVERAGE EXPECTED GAS COST OF "&TEXT(EGC,"$0.000")&"/MCF." -> (3) REFLECTS AVERAGE EXPECTED GAS COST OF $4.062/MCF.

Sheet Rate GS OPA
A1: =COMPANY -> DUKE ENERGY KENTUCKY
A2: =CASE -> CASE NO. 2021-00190
A3: ANNUALIZED REVENUES AT PROPOSED VS. MOST CURRENT RATES
A4: =TIME_PERIOD -> FOR THE TWELVE MONTHS ENDED DECEMBER 31, 2022
A5: =SERV_TYPE -> (GAS SERVICE)
A6: =DATA_TYPE -> DATA: ___ BASE PERIOD _X_FORECASTED PERIOD | R6: SCHEDULE M-2.3
A7: =FILING_TYPE -> TYPE OF FILING: _X_ ORIGINAL ___UPDATED ___ REVISED | R7: PAGE 5 OF 7
A8: WORK PAPER REFERENCE NO(S).: | R8: WITNESS:
A9: =TIME -> 12 MONTHS FORECASTED | R9: =WIT -> J.L. Kern
A10: PROPOSED ANNUALIZED
L12: PROPOSED | N12: % OF REV TO | R12: PROPOSED
L13: REVENUE LESS | N13: TOTAL LESS | R13: TOTAL
A14: LINE | C14: RATE | D14: CLASS / | F14: CUSTOMER | J14: PROPOSED | L14: GAS COST | N14: GAS COST | P14: GAS COST | R14: REVENUE
A15: NO. | C15: CODE | D15: DESCRIPTION | F15: BILLS(1) | H15: SALES(2) | J15: RATES | L15: REVENUE | N15: REVENUE | P15: REVENUE(3) | R15: (F + H)
C16: (A) | D16: (B) | F16: (C) | H16: (D) | J16: (E) | L16: (F) | N16: (G) | P16: (H) | R16: (I)
H18: (MCF) | J18: ($/MCF) | L18: ($) | N18: (%) | P18: ($) | R18: ($)
A19: 1 | C19: GS | D19: OTHER PUBLIC AUTHORITIES
A21: 2 | C21: CUSTOMER CHARGE:
A22: 3 | C22: NON-RESIDENTIAL
A23: 4 | C23: TOTAL MONTHLY BILLS x :
A24: 5 | C24: CUSTOMER CHARGE PER MONTH | F24: =2529+12 -> 2541 | J24: =PRO_GS_CUST -> 58 | L24: =ROUND(F24*J24,0) -> 147378 | N24: =ROUND((L24/$L$37)*100,1) -> 10.8 | R24: =L24+P24 -> 147378
A26: 6 | C26: COMMODITY CHARGE:
A27: 7 | C27: ALL CONSUMPTION | H27: =289161+61 -> 289222 | J27: =PRO_GS -> 4.2149 | L27: =ROUND((H27*J27),0) -> 1219042 | N27: =ROUND((L27/$L$37)*100,1) -> 89.2 | P27: =ROUND(EGC*$H27,0) -> 1174820 | R27: =L27+P27 -> 2393862
A29: 8 | C29: RATE GS OPA EXCLUDING RIDERS | F29: =F24 -> 2541 | H29: =H27 -> 289222 | L29: =SUM(L24:L27) -> 1366420 | N29: =ROUND((L29/$L$37)*100,1) -> 100 | P29: =SUM(P24:P27) -> 1174820 | R29: =SUM(R24:R27) -> 2541240
A31: 9 | C31: RIDERS:
A32: 10 | C32: DEMAND SIDE MANAGEMENT RATE (DSMR) | J32: =PRO_GS_DSM -> 0 | L32: =ROUND(H27*J32,0) -> 0 | N32: =ROUND((L32/$L$37)*100,1) -> 0 | R32: =L32+P32 -> 0
A33: 11 | C33: WEATHER NORMALIZATION ADJUSTMENT (WNA) | J33: 0 | L33: =ROUND(H29*J33,0) -> 0 | N33: =ROUND((L33/$L$37)*100,1) -> 0 | R33: =L33+P33 -> 0
A35: 12 | C35: TOTAL RIDERS | L35: =SUM(L31:L33) -> 0 | N35: =ROUND((L35/$L$37)*100,1) -> 0 | R35: =SUM(R31:R33) -> 0
A37: 13 | C37: TOTAL RATE GS OPA INCLUDING RIDERS | F37: =F24 -> 2541 | H37: =H27 -> 289222 | L37: =L29+L35 -> 1366420 | N37: =SUM(N29+N35) -> 100 | P37: =P29+P35 -> 1174820 | R37: =R29+R35 -> 2541240
C39: (1) BILLS THAT TERMINATE IN RESPECTIVE RATE STEPS.
C40: (2) REFLECTS NORMALIZED VOLUMES.
C41: ="(3) REFLECTS AVERAGE EXPECTED GAS COST OF "&TEXT(EGC,"$0.000")&"/MCF." -> (3) REFLECTS AVERAGE EXPECTED GAS COST OF $4.062/MCF.
T43: =COMPANY -> DUKE ENERGY KENTUCKY
T44: =CASE -> CASE NO. 2021-00190
T45: ANNUALIZED TEST YEAR REVENUES AT PROPOSED VS. MOST CURRENT RATES
T46: =TIME_PERIOD -> FOR THE TWELVE MONTHS ENDED DECEMBER 31, 2022
T47: =SERV_TYPE -> (GAS SERVICE)
T48: =DATA_TYPE -> DATA: ___ BASE PERIOD _X_FORECASTED PERIOD | AN48: SCHEDULE M-2.2
T49: =FILING_TYPE -> TYPE OF FILING: _X_ ORIGINAL ___UPDATED ___ REVISED | AN49: =R7 -> PAGE 5 OF 7
T50: WORK PAPER REFERENCE NO(S).: | AN50: WITNESS:
T51: =TIME -> 12 MONTHS FORECASTED | AN51: =WIT -> J.L. Kern
T52: CURRENT ANNUALIZED
AD54: CURRENT | AF54: % OF REV TO | AH54: REVENUE | AJ54: % INCR IN | AN54: CURRENT | AP54: TOTAL
AB55: MOST | AD55: REVENUE LESS | AF55: TOTAL LESS | AH55: INCR LESS | AJ55: REV LESS | AN55: TOTAL | AP55: REVENUE
T56: LINE | V56: RATE | W56: CLASS / | X56: CUSTOMER | AB56: CURRENT | AD56: GAS COST | AF56: GAS COST | AH56: GAS COST REV | AJ56: GAS COST REV | AL56: GAS COST | AN56: REVENUE | AP56: % INCREASE
T57: NO. | V57: CODE | W57: DESCRIPTION | X57: BILLS(1) | Z57: SALES(2) | AB57: RATES | AD57: REVENUE | AF57: REVENUE | AH57: (F - K) | AJ57: (M / K) | AL57: REVENUE(3) | AN57: (K + H) | AP57: (M / K1)
V58: (A) | W58: (B) | X58: (C) | Z58: (D) | AB58: (J) | AD58: (K) | AF58: (L) | AH58: (M) | AJ58: (N) | AL58: (H) | AN58: (K1) | AP58: (O)
Z60: (MCF) | AB60: ($/MCF) | AD60: ($) | AF60: (%) | AH60: ($) | AJ60: (%) | AL60: ($) | AN60: ($) | AP60: (%)
T61: 1 | V61: GS | W61: OTHER PUBLIC AUTHORITIES
T63: 2 | V63: CUSTOMER CHARGE:
T64: 3 | V64: NON-RESIDENTIAL
T65: 4 | V65: TOTAL MONTHLY BILLS x :
T66: 5 | V66: CUSTOMER CHARGE PER MONTH | X66: =F24 -> 2541 | AB66: =CUR_GS_CUST -> 50 | AD66: =ROUND(X66*AB66,0) -> 127050 | AF66: =ROUND((AD66/$AD$79)*100,1) -> 13.1 | AH66: =L24-AD66 -> 20328 | AJ66: =IF(AD66=0,"0.0 ",ROUND((AH66/AD66)*100,1)) -> 16 | AN66: =AD66+AL66 -> 127050 | AP66: =IF(AN66=0,"0.0 ",ROUND((AH66/AN66)*100,1)) -> 16
T68: 6 | V68: COMMODITY CHARGE:
T69: 7 | V69: ALL CONSUMPTION | Z69: =H27 -> 289222 | AB69: =CUR_GS -> 2.9243 | AD69: =ROUND((Z69*AB69),0) -> 845772 | AF69: =ROUND((AD69/$AD$79)*100,1) -> 86.9 | AH69: =L27-AD69 -> 373270 | AJ69: =IF(AD69=0,"0.0 ",ROUND((AH69/AD69)*100,1)) -> 44.1 | AL69: =P27 -> 1174820 | AN69: =AD69+AL69 -> 2020592 | AP69: =IF(AN69=0,"0.0 ",ROUND((AH69/AN69)*100,1)) -> 18.5
T71: 8 | V71: RATE GS OPA EXCLUDING RIDERS | X71: =X66 -> 2541 | Z71: =Z69 -> 289222 | AD71: =SUM(AD66:AD69) -> 972822 | AF71: =ROUND((AD71/$AD$79)*100,1) -> 100 | AH71: =SUM(AH66:AH69) -> 393598 | AJ71: =IF(AD71=0,"0.0 ",ROUND((AH71/AD71)*100,1)) -> 40.5 | AL71: =SUM(AL66:AL69) -> 1174820 | AN71: =SUM(AN66:AN69) -> 2147642 | AP71: =IF(AN71=0,"0.0 ",ROUND((AH71/AN71)*100,1)) -> 18.3
T73: 9 | V73: RIDERS:
T74: 10 | V74: DEMAND SIDE MANAGEMENT RATE (DSMR) | AB74: =CUR_GS_DSM -> 0 | AD74: =ROUND(Z69*AB74,0) -> 0 | AF74: =ROUND((AD74/$AD$79)*100,1) -> 0 | AH74: =L32-AD74 -> 0 | AJ74: =IF(AD74=0,"0.0 ",ROUND((AH74/AD74)*100,1)) -> 0.0 | AN74: =AD74+AL74 -> 0 | AP74: =IF(AN74=0,"0.0 ",ROUND((AH74/AN74)*100,1)) -> 0.0
T75: =A33 -> 11 | V75: WEATHER NORMALIZATION ADJUSTMENT (WNA) | AB75: 0 | AD75: =ROUND(Z71*AB75,0) -> 0 | AF75: =ROUND((AD75/$AD$79)*100,1) -> 0 | AH75: =L33-AD75 -> 0 | AJ75: =IF(AD75=0,"0.0 ",ROUND((AH75/AD75)*100,1)) -> 0.0 | AN75: =AD75+AL75 -> 0 | AP75: =IF(AN75=0,"0.0 ",ROUND((AH75/AN75)*100,1)) -> 0.0
T77: =A35 -> 12 | V77: TOTAL RIDERS | AD77: =SUM(AD73:AD75) -> 0 | AF77: =ROUND((AD77/$AD$79)*100,1) -> 0 | AH77: =SUM(AH73:AH75) -> 0 | AJ77: =IF(AD77=0,"0.0 ",ROUND((AH77/AD77)*100,1)) -> 0.0 | AN77: =SUM(AN73:AN75) -> 0 | AP77: =IF(AN77=0,"0.0 ",ROUND((AH77/AN77)*100,1)) -> 0.0
T79: =A37 -> 13 | V79: TOTAL RATE GS OPA INCLUDING RIDERS | X79: =X66 -> 2541 | Z79: =Z69 -> 289222 | AD79: =AD71+AD77 -> 972822 | AF79: =AF71+AF77 -> 100 | AH79: =AH71+AH77 -> 393598 | AJ79: =IF(AD79=0,"0.0 ",ROUND((AH79/AD79)*100,1)) -> 40.5 | AL79: =P37 -> 1174820 | AN79: =AN71+AN77 -> 2147642 | AP79: =IF(AN79=0,"0.0 ",ROUND((AH79/AN79)*100,1)) -> 18.3
V81: (1) BILLS THAT TERMINATE IN RESPECTIVE RATE STEPS.
V82: (2) REFLECTS NORMALIZED VOLUMES.
V83: ="(3) REFLECTS AVERAGE EXPECTED GAS COST OF "&TEXT(EGC,"$0.000")&"/MCF." -> (3) REFLECTS AVERAGE EXPECTED GAS COST OF $4.062/MCF.

Sheet Rate FT-LG
A1: =COMPANY -> DUKE ENERGY KENTUCKY
A2: =CASE -> CASE NO. 2021-00190
A3: ANNUALIZED REVENUES AT PROPOSED VS. MOST CURRENT RATES
A4: =TIME_PERIOD -> FOR THE TWELVE MONTHS ENDED DECEMBER 31, 2022
A5: =SERV_TYPE -> (GAS SERVICE)
A6: =DATA_TYPE -> DATA: ___ BASE PERIOD _X_FORECASTED PERIOD | R6: SCHEDULE M-2.3
A7: =FILING_TYPE -> TYPE OF FILING: _X_ ORIGINAL ___UPDATED ___ REVISED | R7: PAGE 6 OF 7
A8: WORK PAPER REFERENCE NO(S).: | R8: WITNESS:
A9: =TIME -> 12 MONTHS FORECASTED | R9: =WIT -> J.L. Kern
A10: PROPOSED ANNUALIZED
L12: PROPOSED | N12: % OF REV TO | R12: PROPOSED
L13: REVENUE LESS | N13: TOTAL LESS | R13: TOTAL
A14: LINE | C14: RATE | D14: CLASS / | F14: CUSTOMER | J14: PROPOSED | L14: GAS COST | N14: GAS COST | P14: GAS COST | R14: REVENUE
A15: NO. | C15: CODE | D15: DESCRIPTION | F15: BILLS | H15: SALES(1) | J15: RATES | L15: REVENUE | N15: REVENUE | P15: REVENUE | R15: (F + H)
C16: (A) | D16: (B) | F16: (C) | H16: (D) | J16: (E) | L16: (F) | N16: (G) | P16: (H) | R16: (I)
H18: (MCF) | J18: ($/MCF) | L18: ($) | N18: (%) | P18: ($) | R18: ($)
A19: 1 | C19: FT - L
A20: 2 | C20: FIRM TRANSPORTATION - LARGE
A22: 3 | C22: ADMINISTRATIVE CHARGE | F22: 1092 | J22: =PRO_FTL_CUST -> 430 | L22: =ROUND((F22*J22),0) -> 469560 | N22: =ROUND((L22/L$34)*100,1) -> 6.8 | R22: =L22+P22 -> 469560
A24: 4 | C24: TRANSPORTATION CHARGE:
A25: 5 | C25: ALL CONSUMPTION | H25: 2736182 | J25: =PRO_FTL_COM -> 2.3524 | L25: =ROUND((H25*J25),0) -> 6436595 | N25: =ROUND((L25/L$34)*100,1) -> 93.2 | R25: =L25+P25 -> 6436595
A27: 6 | C27: RATE FT-LARGE EXCLUDING RIDERS | F27: =F22 -> 1092 | H27: =H25 -> 2736182 | L27: =SUM(L22:L25) -> 6906155 | N27: =SUM(N22:N25) -> 100 | R27: =SUM(R22:R25) -> 6906155
A29: 7 | C29: RIDERS:
A30: 8 | C30: GAS COST ADJUSTMENT TRANSITION (GCAT) (2) | J30: =PRO_FTL_GCAT -> -0.058 | N30: =ROUND((L30/L$34)*100,1) -> 0 | P30: =ROUND(H25*R37*J30,0) -> -7935 | R30: =L30+P30 -> -7935
A32: 9 | C32: TOTAL RIDERS | L32: =SUM(L30:L30) -> 0 | N32: =ROUND((L32/L$34)*100,1) -> 0 | P32: =P30 -> -7935 | R32: =SUM(R30:R30) -> -7935
A34: 10 | C34: TOTAL RATE FT - LARGE INCLUDING RIDERS | F34: =F22 -> 1092 | H34: =H25 -> 2736182 | L34: =L27+L32 -> 6906155 | N34: =SUM(N27+N32) -> 100 | P34: =P32+P27 -> -7935 | R34: =R27+R32 -> 6898220
C36: (1) REFLECTS NORMALIZED VOLUMES.
C37: (2) GCAT only applies to FT-L customers during the first 12 months after they switch from sales service. Usage for this rider estimated at | R37: 0.05
T38: =COMPANY -> DUKE ENERGY KENTUCKY
T39: =CASE -> CASE NO. 2021-00190
T40: ANNUALIZED TEST YEAR REVENUES AT PROPOSED VS. MOST CURRENT RATES
T41: =TIME_PERIOD -> FOR THE TWELVE MONTHS ENDED DECEMBER 31, 2022
T42: =SERV_TYPE -> (GAS SERVICE)
T43: =DATA_TYPE -> DATA: ___ BASE PERIOD _X_FORECASTED PERIOD | AN43: SCHEDULE M-2.2
T44: =FILING_TYPE -> TYPE OF FILING: _X_ ORIGINAL ___UPDATED ___ REVISED | AN44: =R7 -> PAGE 6 OF 7
T45: WORK PAPER REFERENCE NO(S).: | AN45: WITNESS:
T46: =TIME -> 12 MONTHS FORECASTED | AN46: =WIT -> J.L. Kern
T47: CURRENT ANNUALIZED
AD49: CURRENT | AF49: % OF REV TO | AH49: REVENUE | AJ49: % INCR IN | AN49: CURRENT | AP49: TOTAL
AB50: MOST | AD50: REVENUE LESS | AF50: TOTAL LESS | AH50: INCR LESS | AJ50: REV LESS | AN50: TOTAL | AP50: REVENUE
T51: LINE | V51: RATE | W51: CLASS / | X51: CUSTOMER | AB51: CURRENT | AD51: GAS COST | AF51: GAS COST | AH51: GAS COST REV | AJ51: GAS COST REV | AL51: GAS COST | AN51: REVENUE | AP51: % INCREASE
T52: NO. | V52: CODE | W52: DESCRIPTION | X52: BILLS | Z52: SALES(1) | AB52: RATES | AD52: REVENUE | AF52: REVENUE | AH52: (F - K) | AJ52: (M / K) | AL52: REVENUE | AN52: (K + H) | AP52: (M / K1)
V53: (A) | W53: (B) | X53: (C) | Z53: (D) | AB53: (J) | AD53: (K) | AF53: (L) | AH53: (M) | AJ53: (N) | AL53: (H) | AN53: (K1) | AP53: (O)
Z55: (MCF) | AB55: ($/MCF) | AD55: ($) | AF55: (%) | AH55: ($) | AJ55: (%) | AL55: ($) | AN55: ($) | AP55: (%)
T56: 1 | V56: FT - L
T57: 2 | V57: FIRM TRANSPORTATION - LARGE
T59: 3 | V59: ADMINISTRATIVE CHARGE | X59: =F22 -> 1092 | AB59: =CUR_FTL_CUST -> 430 | AD59: =ROUND(X59*AB59,0) -> 469560 | AF59: =IF(AD$71=0,"0.0 ",ROUND((AD59/AD$71)*100,1)) -> 8.6 | AH59: =L22-AD59 -> 0 | AJ59: =IF(AD59=0,"0.0 ",ROUND((AH59/AD59)*100,1)) -> 0 | AN59: =AD59+AL59 -> 469560 | AP59: =IF(AN59=0,"0.0 ",ROUND((AH59/AN59)*100,1)) -> 0
T61: 4 | V61: TRANSPORTATION CHARGE:
T62: 5 | V62: ALL CONSUMPTION | Z62: =H25 -> 2736182 | AB62: =CUR_FTL_COM -> 1.821 | AD62: =ROUND(Z62*AB62,0) -> 4982587 | AF62: =IF(AD$71=0,"0.0 ",ROUND((AD62/AD$71)*100,1)) -> 91.4 | AH62: =L25-AD62 -> 1454008 | AJ62: =IF(AD62=0,"0.0 ",ROUND((AH62/AD62)*100,1)) -> 29.2 | AN62: =AD62+AL62 -> 4982587 | AP62: =IF(AN62=0,"0.0 ",ROUND((AH62/AN62)*100,1)) -> 29.2
T64: 6 | V64: RATE FT-LARGE EXCLUDING RIDERS | X64: =X59 -> 1092 | Z64: =Z62 -> 2736182 | AD64: =SUM(AD59:AD62) -> 5452147 | AF64: =SUM(AF59:AF62) -> 100 | AH64: =SUM(AH59:AH62) -> 1454008 | AJ64: =IF(AD64=0,"0.0 ",ROUND((AH64/AD64)*100,1)) -> 26.7 | AN64: =SUM(AN59:AN62) -> 5452147 | AP64: =IF(AN64=0,"0.0 ",ROUND((AH64/AN64)*100,1)) -> 26.7
T66: 7 | V66: RIDERS:
T67: 8 | V67: GAS COST ADJUSTMENT TRANSITION (GCAT)(2) | AB67: =CUR_FTL_GCAT -> -0.058 | AF67: =IF(AD$71=0,"0.0 ",ROUND((AD67/AD$71)*100,1)) -> 0 | AH67: =L30-AD67 -> 0 | AJ67: =IF(AD67=0,"0.0 ",ROUND((AH67/AD67)*100,1)) -> 0.0 | AL67: =ROUND(Z62*R37*AB67,0) -> -7935 | AN67: =AD67+AL67 -> -7935 | AP67: =IF(AN67=0,"0.0 ",ROUND((AH67/AN67)*100,1)) -> 0
T69: 9 | V69: TOTAL RIDERS | AD69: =SUM(AD67:AD67) -> 0 | AF69: =SUM(AF67:AF67) -> 0 | AH69: =SUM(AH67:AH67) -> 0 | AJ69: =IF(AD69=0,"0.0 ",ROUND((AH69/AD69)*100,1)) -> 0.0 | AL69: =SUM(AL67:AL67) -> -7935 | AN69: =SUM(AN67:AN67) -> -7935 | AP69: =IF(AN69=0,"0.0 ",ROUND((AH69/AN69)*100,1)) -> 0
T71: 10 | V71: TOTAL RATE FT - LARGE INCLUDING RIDERS | X71: =X59 -> 1092 | Z71: =Z62 -> 2736182 | AD71: =SUM(AD64+AD69) -> 5452147 | AF71: =SUM(AF64+AF69) -> 100 | AH71: =SUM(AH64+AH69) -> 1454008 | AJ71: =IF(AD71=0,"0.0 ",ROUND((AH71/AD71)*100,1)) -> 26.7 | AL71: =SUM(AL64+AL69) -> -7935 | AN71: =SUM(AN64+AN69) -> 5444212 | AP71: =IF(AN71=0,"0.0 ",ROUND((AH71/AN71)*100,1)) -> 26.7
V74: (1) REFLECTS NORMALIZED VOLUMES.
V75: ="(2) GCAT only applies to FT-L customers during the first 12 months after they switch from sales service. Usage for this rider estimated at "&TEXT(R37,"0%") -> (2) GCAT only applies to FT-L customers during the first 12 months after they switch from sales service. Usage for this rider estimated at 5%

Sheet Rate IT
A1: =COMPANY -> DUKE ENERGY KENTUCKY
A2: =CASE -> CASE NO. 2021-00190
A3: ANNUALIZED REVENUES AT PROPOSED VS. MOST CURRENT RATES
A4: =TIME_PERIOD -> FOR THE TWELVE MONTHS ENDED DECEMBER 31, 2022
A5: =SERV_TYPE -> (GAS SERVICE)
A6: =DATA_TYPE -> DATA: ___ BASE PERIOD _X_FORECASTED PERIOD | R6: SCHEDULE M-2.3
A7: =FILING_TYPE -> TYPE OF FILING: _X_ ORIGINAL ___UPDATED ___ REVISED | R7: PAGE 7 OF 7
A8: WORK PAPER REFERENCE NO(S).: | R8: WITNESS:
A9: =TIME -> 12 MONTHS FORECASTED | R9: =WIT -> J.L. Kern
A10: PROPOSED ANNUALIZED
L12: PROPOSED | N12: % OF REV TO | R12: PROPOSED
L13: REVENUE LESS | N13: TOTAL LESS | R13: TOTAL
A14: LINE | C14: RATE | D14: CLASS / | F14: CUSTOMER | J14: PROPOSED | L14: GAS COST | N14: GAS COST | P14: GAS COST | R14: REVENUE
A15: NO. | C15: CODE | D15: DESCRIPTION | F15: BILLS | H15: SALES | J15: RATES | L15: REVENUE | N15: REVENUE | P15: REVENUE | R15: (F + H)
C16: (A) | D16: (B) | F16: (C) | H16: (D) | J16: (E) | L16: (F) | N16: (G) | P16: (H) | R16: (I)
H18: (MCF) | J18: ($/MCF) | L18: ($) | N18: (%) | P18: ($) | R18: ($)
A19: 1 | C19: IT
A20: 2 | C20: INTERRUPTIBLE TRANSPORTATION
A22: 3 | C22: ADMINISTRATIVE CHARGE | F22: 264 | J22: =PRO_IT_CUST -> 430 | L22: =ROUND((F22*J22),0) -> 113520 | N22: =ROUND((L22/L$34)*100,1) -> 5.1 | R22: =L22+P22 -> 113520
A24: 4 | C24: COMMODITY CHARGE:
A25: 5 | C25: ALL CONSUMPTION | H25: 1672200 | J25: =PRO_IT_COM -> 1.2627 | L25: =ROUND((H25*(J25)),0) -> 2111487 | N25: =ROUND((L25/L$34)*100,1) -> 94.9 | R25: =L25+P25 -> 2111487
A27: 6 | C27: RATE IT EXCLUDING RIDERS | F27: =F22 -> 264 | H27: =H25 -> 1672200 | L27: =SUM(L22:L25) -> 2225007 | N27: =SUM(N22:N25) -> 100 | R27: =SUM(R22:R25) -> 2225007
A29: 7 | C29: RIDERS:
A30: 8 | C30: N/A | J30: 0 | L30: =ROUND(H25*J30,0) -> 0 | N30: =ROUND((L30/L$34)*100,1) -> 0 | R30: =L30+P30 -> 0
A32: 9 | C32: TOTAL RIDERS | L32: =SUM(L29:L30) -> 0 | N32: =ROUND((L32/L$34)*100,1) -> 0 | R32: =SUM(R29:R30) -> 0
A34: 10 | C34: TOTAL RATE IT TRANSPORTATION | F34: =F27 -> 264 | H34: =H27 -> 1672200 | L34: =L27+L32 -> 2225007 | N34: =ROUND((L34/L$34)*100,1) -> 100 | R34: =R27+R32 -> 2225007
T41: =COMPANY -> DUKE ENERGY KENTUCKY
T42: =CASE -> CASE NO. 2021-00190
T43: ANNUALIZED TEST YEAR REVENUES AT PROPOSED VS. MOST CURRENT RATES
T44: =TIME_PERIOD -> FOR THE TWELVE MONTHS ENDED DECEMBER 31, 2022
T45: =SERV_TYPE -> (GAS SERVICE)
T46: =DATA_TYPE -> DATA: ___ BASE PERIOD _X_FORECASTED PERIOD | AN46: SCHEDULE M-2.2
T47: =FILING_TYPE -> TYPE OF FILING: _X_ ORIGINAL ___UPDATED ___ REVISED | AN47: =R7 -> PAGE 7 OF 7
T48: WORK PAPER REFERENCE NO(S).: | AN48: WITNESS:
T49: =TIME -> 12 MONTHS FORECASTED | AN49: =WIT -> J.L. Kern
T50: CURRENT ANNUALIZED
AD52: CURRENT | AF52: % OF REV TO | AH52: REVENUE | AJ52: % INCR IN | AN52: CURRENT | AP52: TOTAL
AB53: MOST | AD53: REVENUE LESS | AF53: TOTAL LESS | AH53: INCR LESS | AJ53: REV LESS | AN53: TOTAL | AP53: REVENUE
T54: LINE | V54: RATE | W54: CLASS / | X54: CUSTOMER | AB54: CURRENT | AD54: GAS COST | AF54: GAS COST | AH54: GAS COST REV | AJ54: GAS COST REV | AL54: GAS COST | AN54: REVENUE | AP54: % INCREASE
T55: NO. | V55: CODE | W55: DESCRIPTION | X55: BILLS | Z55: SALES | AB55: RATES | AD55: REVENUE(3) | AF55: REVENUE | AH55: (F - K) | AJ55: (M / K) | AL55: REVENUE | AN55: (K + H) | AP55: (M / K1)
V56: (A) | W56: (B) | X56: (C) | Z56: (D) | AB56: (J) | AD56: (K) | AF56: (L) | AH56: (M) | AJ56: (N) | AL56: (H) | AN56: (K1) | AP56: (O)
Z58: (MCF) | AB58: ($/MCF) | AD58: ($) | AF58: (%) | AH58: ($) | AJ58: (%) | AL58: ($) | AN58: ($) | AP58: (%)
T59: 1 | V59: RATE IT
T60: 2 | V60: INTERRUPTIBLE TRANSPORTATION
T62: 3 | V62: ADMINISTRATIVE CHARGE | X62: =F22 -> 264 | AB62: =CUR_IT_CUST -> 430 | AD62: =ROUND(X62*AB62,0) -> 113520 | AF62: =ROUND((AD62/AD$74)*100,1) -> 6.4 | AH62: =L22-AD62 -> 0 | AJ62: =IF(AD62=0,"0.0 ",ROUND((AH62/AD62)*100,1)) -> 0 | AN62: =AD62+AL62 -> 113520 | AP62: =IF(AN62=0,"0.0 ",ROUND((AH62/AN62)*100,1)) -> 0
T64: 4 | V64: COMMODITY CHARGE:
T65: 5 | V65: ALL CONSUMPTION | Z65: =H25 -> 1672200 | AB65: =CUR_IT_COM -> 0.9982 | AD65: =ROUND(Z65*AB65,0) -> 1669190 | AF65: =ROUND((AD65/AD$74)*100,1) -> 93.6 | AH65: =L25-AD65 -> 442297 | AJ65: =IF(AD65=0,"0.0 ",ROUND((AH65/AD65)*100,1)) -> 26.5 | AN65: =AD65+AL65 -> 1669190 | AP65: =IF(AN65=0,"0.0 ",ROUND((AH65/AN65)*100,1)) -> 26.5
T67: 6 | V67: RATE IT EXCLUDING RIDERS | X67: =X62 -> 264 | Z67: =Z65 -> 1672200 | AD67: =SUM(AD62:AD65) -> 1782710 | AF67: =SUM(AF62:AF65) -> 100 | AH67: =L27-AD67 -> 442297 | AJ67: =IF(AD67=0,"0.0 ",ROUND((AH67/AD67)*100,1)) -> 24.8 | AN67: =SUM(AN62:AN65) -> 1782710 | AP67: =IF(AN67=0,"0.0 ",ROUND((AH67/AN67)*100,1)) -> 24.8
T69: 7 | V69: RIDERS:
T70: 8 | V70: N/A | AB70: 0 | AD70: =ROUND(Z65*AB70,0) -> 0 | AF70: =ROUND((AD70/AD$74)*100,1) -> 0 | AH70: =L30-AD70 -> 0 | AJ70: =IF(AD70=0,"0.0 ",ROUND((AH70/AD70)*100,1)) -> 0.0 | AN70: =AD70+AL70 -> 0 | AP70: =IF(AN70=0,"0.0 ",ROUND((AH70/AN70)*100,1)) -> 0.0
T72: 9 | V72: TOTAL RIDERS | AD72: =SUM(AD69:AD70) -> 0 | AF72: =ROUND((AD72/AD$74)*100,1) -> 0 | AH72: =L32-AD72 -> 0 | AJ72: =IF(AD72=0,"0.0 ",ROUND((AH72/AD72)*100,1)) -> 0.0 | AN72: =SUM(AN69:AN70) -> 0 | AP72: =IF(AN72=0,"0.0 ",ROUND((AH72/AN72)*100,1)) -> 0.0
T74: 10 | V74: TOTAL RATE IT TRANSPORTATION | X74: =X67 -> 264 | Z74: =Z67 -> 1672200 | AD74: =AD67+AD72 -> 1782710 | AF74: =ROUND((AD74/AD$74)*100,1) -> 100 | AH74: =AH67+AH72 -> 442297 | AJ74: =IF(AD74=0,"0.0 ",ROUND((AH74/AD74)*100,1)) -> 24.8 | AN74: =AN67+AN72 -> 1782710 | AP74: =IF(AN74=0,"0.0 ",ROUND((AH74/AN74)*100,1)) -> 24.8

Sheet SCH N
A1: =COMPANY -> DUKE ENERGY KENTUCKY
A2: =CASE -> CASE NO. 2021-00190
A3: EFFECTS OF PROPOSED RESIDENTIAL AND GENERAL SERVICE RATES
A4: TYPICAL BILL COMPARISON
A5: =SERV_TYPE -> (GAS SERVICE)
A7: =DATA_TYPE -> DATA: ___ BASE PERIOD _X_FORECASTED PERIOD | M7: SCHEDULE N
A8: =FILING_TYPE -> TYPE OF FILING: _X_ ORIGINAL ___UPDATED ___ REVISED | M8: PAGE 1 OF 2
A9: WORK PAPER REFERENCE NO(S).: | M9: WITNESS:
A10: =TIME -> 12 MONTHS FORECASTED | M10: =WIT -> J.L. Kern
F13: BILL DATA INCLUDING RIDERS LESS COST of GAS | L13: TOTAL | M13: TOTAL
D14: LEVEL | E14: LEVEL | H14: DOLLAR | I14: PERCENT | L14: CURRENT | M14: PROPOSED | N14: PERCENT
D15: of | E15: of | F15: CURRENT | G15: PROPOSED | H15: INCREASE | I15: INCREASE | K15: GAS | L15: BILL | M15: BILL | N15: INCREASE
A16: LINE | C16: RATE | D16: DEMAND | E16: USE | F16: BILL | G16: BILL | H16: (D - C) | I16: (E / C) | K16: COST (1) | L16: (C + G) | M16: (D + G) | N16: (I-H) /H
A17: NO. | C17: CODE | D17: (A) | E17: (B) | F17: (C) | G17: (D) | H17: (E) | I17: (F) | K17: (G) | L17: (H) | M17: (I) | N17: (L)
E18: (MCF) | F18: ($) | G18: ($) | H18: ($) | I18: (%) | K18: ($) | L18: ($) | M18: ($) | N18: (%)
A19: 1 | C19: (RS)
A20: 2 | C20: RESIDENTIAL | D20: Not | E20: 1 | F20: =ROUND(E20*(CUR_RS+CUR_RS_DSM)+CUR_RS_CUST+CUR_RS_HEA,2) -> 21.95 | G20: =ROUND(E20*(PRO_RS_COM+PRO_RS_DSM)+PRO_RS_CUST+PRO_RS_HEA,2) -> 25.29 | H20: =G20-F20 -> 3.34 | I20: =ROUND(H20/F20,3)*100 -> 15.2 | K20: =ROUND(E20*EGC,2) -> 4.06 | L20: =F20+K20 -> 26.01 | M20: =G20+K20 -> 29.35 | N20: =ROUND((M20-L20)/L20,3)*100 -> 12.8
A21: 3 | D21: Applicable | E21: 3 | F21: 32.25 | G21: 37.27 | H21: 5.02 | I21: 15.6 | K21: 12.19 | L21: =F21+K21 -> 44.44 | M21: =G21+K21 -> 49.46 | N21: =ROUND((M21-L21)/L21,3)*100 -> 11.3
A22: 4 | E22: 6 | F22: 47.7 | G22: 55.25 | H22: 7.55 | I22: 15.8 | K22: 24.37 | L22: 72.07 | M22: 79.62 | N22: 10.5
A23: 5 | E23: 8 | F23: 58 | G23: 67.23 | H23: 9.23 | I23: 15.9 | K23: 32.5 | L23: 90.5 | M23: 99.73 | N23: 10.2
A24: 6 | E24: 10 | F24: 68.3 | G24: 79.21 | H24: 10.91 | I24: 16 | K24: 40.62 | L24: 108.92 | M24: 119.83 | N24: 10
A25: 7 | E25: 12 | F25: 78.6 | G25: 91.19 | H25: 12.59 | I25: 16 | K25: 48.74 | L25: 127.34 | M25: 139.93 | N25: 9.9
A26: 8 | E26: 16 | F26: 99.2 | G26: 115.16 | H26: 15.96 | I26: 16.1 | K26: 64.99 | L26: 164.19 | M26: 180.15 | N26: 9.7
A27: 9 | E27: 20 | F27: 119.8 | G27: 139.12 | H27: 19.32 | I27: 16.1 | K27: 81.24 | L27: 201.04 | M27: 220.36 | N27: 9.6
A28: 10 | E28: 30 | F28: 171.31 | G28: 199.04 | H28: 27.73 | I28: 16.2 | K28: 121.86 | L28: 293.17 | M28: 320.9 | N28: 9.5
A29: 11 | E29: 40 | F29: 222.81 | G29: 258.95 | H29: 36.14 | I29: 16.2 | K29: 162.48 | L29: 385.29 | M29: 421.43 | N29: 9.4
A30: 12 | E30: 50 | F30: 274.31 | G30: 318.86 | H30: 44.55 | I30: 16.2 | K30: 203.1 | L30: 477.41 | M30: 521.96 | N30: 9.3
A31: 13 | E31: 60 | F31: 325.81 | G31: 378.77 | H31: 52.96 | I31: 16.3 | K31: 243.72 | L31: 569.53 | M31: 622.49 | N31: 9.3
A32: 14 | E32: 80 | F32: 428.81 | G32: 498.59 | H32: 69.78 | I32: 16.3 | K32: 324.96 | L32: 753.77 | M32: 823.55 | N32: 9.3
A33: 15 | E33: 100 | F33: 531.82 | G33: 618.42 | H33: 86.6 | I33: 16.3 | K33: 406.2 | L33: 938.02 | M33: 1024.62 | N33: 9.2
A35: 16 | C35: (GS)
A36: 17 | C36: NON-RESIDENTIAL | E36: 5 | F36: =ROUND(E36*(CUR_GS)+CUR_GS_CUST,2) -> 64.62 | G36: =ROUND(E36*(+PRO_GS)+PRO_GS_CUST,2) -> 79.07 | H36: =G36-F36 -> 14.45 | I36: =ROUND(H36/F36,3)*100 -> 22.4 | K36: =ROUND(E36*EGC,2) -> 20.31 | L36: =F36+K36 -> 84.93 | M36: =G36+K36 -> 99.38 | N36: =ROUND((M36-L36)/L36,3)*100 -> 17
A37: 18 | E37: 10 | F37: 79.24 | G37: 100.15 | H37: 20.91 | I37: 26.4 | K37: 40.62 | L37: 119.86 | M37: 140.77 | N37: 17.4
A38: 19 | E38: 20 | F38: 108.49 | G38: 142.3 | H38: 33.81 | I38: 31.2 | K38: 81.24 | L38: 189.73 | M38: 223.54 | N38: 17.8
A39: 20 | E39: 40 | F39: 166.97 | G39: 226.6 | H39: 59.63 | I39: 35.7 | K39: 162.48 | L39: 329.45 | M39: 389.08 | N39: 18.1
A40: 21 | E40: 50 | F40: 196.22 | G40: 268.75 | H40: 72.53 | I40: 37 | K40: 203.1 | L40: 399.32 | M40: 471.85 | N40: 18.2
A41: 22 | E41: 100 | F41: 342.43 | G41: 479.49 | H41: 137.06 | I41: 40 | K41: 406.2 | L41: 748.63 | M41: 885.69 | N41: 18.3
A42: 23 | E42: 300 | F42: 927.29 | G42: 1322.47 | H42: 395.18 | I42: 42.6 | K42: 1218.6 | L42: 2145.89 | M42: 2541.07 | N42: 18.4
A43: 24 | E43: 500 | F43: 1512.15 | G43: 2165.45 | H43: 653.3 | I43: 43.2 | K43: 2031 | L43: 3543.15 | M43: 4196.45 | N43: 18.4
A44: 25 | E44: 700 | F44: 2097.01 | G44: 3008.43 | H44: 911.42 | I44: 43.5 | K44: 2843.4 | L44: 4940.41 | M44: 5851.83 | N44: 18.4
A45: 26 | E45: 850 | F45: 2535.66 | G45: 3640.67 | H45: 1105.01 | I45: 43.6 | K45: 3452.7 | L45: 5988.36 | M45: 7093.37 | N45: 18.5
A46: 27 | E46: 1000 | F46: 2974.3 | G46: 4272.9 | H46: 1298.6 | I46: 43.7 | K46: 4062 | L46: 7036.3 | M46: 8334.9 | N46: 18.5
A47: 28 | E47: 2000 | F47: 5898.6 | G47: 8487.8 | H47: 2589.2 | I47: 43.9 | K47: 8124 | L47: 14022.6 | M47: 16611.8 | N47: 18.5
A48: 29 | E48: 3000 | F48: 8822.9 | G48: 12702.7 | H48: 3879.8 | I48: 44 | K48: 12186 | L48: 21008.9 | M48: 24888.7 | N48: 18.5
C51: ="(1) REFLECTS AVERAGE EXPECTED GAS COST OF "&TEXT(EGC,"$0.000")&"/MCF." -> (1) REFLECTS AVERAGE EXPECTED GAS COST OF $4.062/MCF.
A54: =COMPANY -> DUKE ENERGY KENTUCKY
A55: =CASE -> CASE NO. 2021-00190
A56: EFFECTS OF PROPOSED FIRM TRANSPORTATION-LARGE RATES
A57: AND INTERRUPTIBLE TRANSPORTATION RATES ON TYPICAL CUSTOMER BILLS
A58: =SERV_TYPE -> (GAS SERVICE)
A60: =DATA_TYPE -> DATA: ___ BASE PERIOD _X_FORECASTED PERIOD | N60: SCHEDULE N
A61: =FILING_TYPE -> TYPE OF FILING: _X_ ORIGINAL ___UPDATED ___ REVISED | N61: PAGE 2 OF 2
A62: WORK PAPER REFERENCE NO(S).: | N62: WITNESS:
A63: =TIME -> 12 MONTHS FORECASTED | N63: =WIT -> J.L. Kern
F66: BILL DATA INCLUDING RIDERS LESS COST of GAS | L66: TOTAL | M66: TOTAL
D67: LEVEL | E67: LEVEL | H67: DOLLAR | I67: PERCENT | L67: CURRENT | M67: PROPOSED | N67: PERCENT
D68: of | E68: of | F68: CURRENT | G68: PROPOSED | H68: INCREASE | I68: INCREASE | K68: GAS | L68: BILL | M68: BILL | N68: INCREASE
A69: LINE | C69: RATE | D69: DEMAND | E69: USE | F69: BILL | G69: BILL | H69: (D - C) | I69: (E / C) | K69: COST (1) | L69: (C + G) | M69: (D + G) | N69: (I-H) /H
A70: NO. | C70: CODE | D70: (A) | E70: (B) | F70: (C) | G70: (D) | H70: (E) | I70: (F) | K70: (G) | L70: (H) | M70: (I) | N70: (L)
E71: (MCF) | F71: ($) | G71: ($) | H71: ($) | I71: (%) | K71: ($) | L71: ($) | M71: ($) | N71: (%)
E72: (MCF) | F72: ($) | G72: ($) | H72: ($) | I72: (%) | K72: ($) | L72: ($) | M72: ($) | N72: (%)
A74: 1 | C74: (FT-L) | D74: Not
A75: 2 | C75: FIRM | D75: Applicable | E75: 1000 | F75: =ROUND(E75*(CUR_FTL_COM),2)+CUR_FTL_CUST -> 2251 | G75: =ROUND(E75*(PRO_FTL_COM),2)+PRO_FTL_CUST -> 2782.4 | H75: =+G75-F75 -> 531.4 | I75: =ROUND(H75/F75,3)*100 -> 23.6 | K75: =ROUND(E75*PRO_FTL_GCAT,2) -> -58 | L75: =F75+K75 -> 2193 | M75: =G75+K75 -> 2724.4 | N75: =ROUND((M75-L75)/L75,3)*100 -> 24.2
A76: 3 | C76: TRANSPORTATION | E76: 1500 | F76: 3161.5 | G76: 3958.6 | H76: =+G76-F76 -> 797.1 | I76: 25.2 | K76: -87 | L76: =F76+K76 -> 3074.5 | M76: =G76+K76 -> 3871.6 | N76: =ROUND((M76-L76)/L76,3)*100 -> 25.9
A77: 4 | E77: 2000 | F77: 4072 | G77: 5134.8 | H77: 1062.8 | I77: 26.1 | K77: -116 | L77: 3956 | M77: 5018.8 | N77: 26.9
A78: 5 | E78: 3000 | F78: 5893 | G78: 7487.2 | H78: 1594.2 | I78: 27.1 | K78: -174 | L78: 5719 | M78: 7313.2 | N78: 27.9
A79: 6 | E79: 5000 | F79: 9535 | G79: 12192 | H79: 2657 | I79: 27.9 | K79: -290 | L79: 9245 | M79: 11902 | N79: 28.7
A80: 7 | E80: 10000 | F80: 18640 | G80: 23954 | H80: 5314 | I80: 28.5 | K80: -580 | L80: 18060 | M80: 23374 | N80: 29.4
A81: 8 | E81: 20000 | F81: 36850 | G81: 47478 | H81: 10628 | I81: 28.8 | K81: -1160 | L81: 35690 | M81: 46318 | N81: 29.8
A82: 9 | E82: 30000 | F82: 55060 | G82: 71002 | H82: 15942 | I82: 29 | K82: -1740 | L82: 53320 | M82: 69262 | N82: 29.9
A83: 10 | E83: 40000 | F83: 73270 | G83: 94526 | H83: 21256 | I83: 29 | K83: -2320 | L83: 70950 | M83: 92206 | N83: 30
A84: 11 | E84: 50000 | F84: 91480 | G84: 118050 | H84: 26570 | I84: 29 | K84: -2900 | L84: 88580 | M84: 115150 | N84: 30
A85: 12 | E85: 75000 | F85: 137005 | G85: 176860 | H85: 39855 | I85: 29.1 | K85: -4350 | L85: 132655 | M85: 172510 | N85: 30
A86: 13 | E86: 100000 | F86: 182530 | G86: 235670 | H86: 53140 | I86: 29.1 | K86: -5800 | L86: 176730 | M86: 229870 | N86: 30.1
A87: 14 | E87: 150000 | F87: 273580 | G87: 353290 | H87: 79710 | I87: 29.1 | K87: -8700 | L87: 264880 | M87: 344590 | N87: 30.1
A88: 15 | E88: 200000 | F88: 364630 | G88: 470910 | H88: 106280 | I88: 29.1 | K88: -11600 | L88: 353030 | M88: 459310 | N88: 30.1
A90: 16 | C90: (IT) | D90: Not
A91: 17 | C91: INTERRUPTIBLE | D91: Applicable | E91: 2000 | F91: =ROUND(E91*(CUR_IT_COM),2)+CUR_IT_CUST -> 2426.4 | G91: =ROUND(E91*(PRO_IT_COM),2)+PRO_IT_CUST -> 2955.4 | H91: =+G91-F91 -> 529 | I91: =ROUND(H91/F91,3)*100 -> 21.8 | K91: 0 | L91: =F91+K91 -> 2426.4 | M91: =G91+K91 -> 2955.4 | N91: =ROUND((M91-L91)/L91,3)*100 -> 21.8
A92: 18 | C92: TRANSPORTATION | E92: 5000 | F92: 5421 | G92: 6743.5 | H92: =+G92-F92 -> 1322.5 | I92: =ROUND(H92/F92,3)*100 -> 24.4 | K92: 0 | L92: =F92+K92 -> 5421 | M92: =G92+K92 -> 6743.5 | N92: =ROUND((M92-L92)/L92,3)*100 -> 24.4
A93: 19 | E93: 10000 | F93: 10412 | G93: 13057 | H93: 2645 | I93: 25.4 | K93: 0 | L93: 10412 | M93: 13057 | N93: 25.4
A94: 20 | E94: 15000 | F94: 15403 | G94: 19370.5 | H94: 3967.5 | I94: 25.8 | K94: 0 | L94: 15403 | M94: 19370.5 | N94: 25.8
A95: 21 | E95: 20000 | F95: 20394 | G95: 25684 | H95: 5290 | I95: 25.9 | K95: 0 | L95: 20394 | M95: 25684 | N95: 25.9
A96: 22 | E96: 25000 | F96: 25385 | G96: 31997.5 | H96: 6612.5 | I96: 26 | K96: 0 | L96: 25385 | M96: 31997.5 | N96: 26
A97: 23 | E97: 30000 | F97: 30376 | G97: 38311 | H97: 7935 | I97: 26.1 | K97: 0 | L97: 30376 | M97: 38311 | N97: 26.1
A98: 24 | E98: 40000 | F98: 40358 | G98: 50938 | H98: 10580 | I98: 26.2 | K98: 0 | L98: 40358 | M98: 50938 | N98: 26.2
A99: 25 | E99: 50000 | F99: 50340 | G99: 63565 | H99: 13225 | I99: 26.3 | K99: 0 | L99: 50340 | M99: 63565 | N99: 26.3
A100: 26 | E100: 100000 | F100: 100250 | G100: 126700 | H100: 26450 | I100: 26.4 | K100: 0 | L100: 100250 | M100: 126700 | N100: 26.4
A101: 27 | E101: 200000 | F101: 200070 | G101: 252970 | H101: 52900 | I101: 26.4 | K101: 0 | L101: 200070 | M101: 252970 | N101: 26.4
A102: 28 | E102: 300000 | F102: 299890 | G102: 379240 | H102: 79350 | I102: 26.5 | K102: 0 | L102: 299890 | M102: 379240 | N102: 26.5
C104: ="(1) INCLUDES CURRENT RIDER GCAT OF "&TEXT(CUR_FTL_GCAT,"$0.000_);($0.000)")&"/MCF" -> (1) INCLUDES CURRENT RIDER GCAT OF ($0.058)/MCF

Sheet Revenue Requirements
A1: REVENUE REQUIREMENTS FROM COST OF SERVICE STUDY
B3: =COMPANY -> DUKE ENERGY KENTUCKY | G3: =B3 -> DUKE ENERGY KENTUCKY
B4: =CASE -> CASE NO. 2021-00190 | G4: =B4 -> CASE NO. 2021-00190 | M4: Comparison of Schedule M Calculated Proposed Revenues
B5: SCHEDULE M - CURRENT RATE REVENUES | G5: COST OF SERVICE STUDY | M5: Less COS Revenue Requirement
B6: No Riders - With Fuel | G6: Proposed Revenue Requirements | M6: =B4 -> CASE NO. 2021-00190
G7: =B4 -> CASE NO. 2021-00190
C9: Customer Bills | D9: Current Rate Revenues - No Riders - Including Fuel | G9: Rate | H9: Customer Component RRs | I9: COS - no riders - includes fuel and FAC | J9: % Change | K9: Increase | M9: Rate | N9: + value is high & - value is low
B10: RS | C10: ='Rate RS'!X65 -> 1130041 | D10: ='Rate RS'!AN79-'Rate RS'!AN73-'Rate RS'!AN74 -> 75382959 | G10: =B10 -> RS | H10: 28611566 | I10: 83658696 | J10: =(I10-D10)/D10 -> 0.1097825969 | K10: =I10-D10 -> 8275737 | M10: =G10 -> RS | N10: ='Proposed Rates'!C21 -> 137
B11: GS | C11: ='Rate GS COM'!F24+'Rate GS IND'!F24+'Rate GS OPA'!F24 -> 84032 | D11: ='Rate GS COM'!AN77+'Rate GS IND'!AN82+'Rate GS OPA'!AN79 -> 28497954 | G11: =B11 -> GS | H11: 4095886 | I11: 33691438 | J11: =(I11-D11)/D11 -> 0.1822405917 | K11: =I11-D11 -> 5193484 | M11: =G11 -> GS | N11: ='Rate GS COM'!R29+'Rate GS IND'!R29+'Rate GS OPA'!R29-'Revenue Requirements'!I11 -> -32891
B14: FT-Large | C14: ='Rate FT-LG'!F22 -> 1092 | D14: ='Rate FT-LG'!AN71 -> 5444212 | G14: FT-Large | H14: 132688 | I14: 6791839 | J14: 0.2475338947 | K14: 1347627 | M14: FT-Large | N14: ='Proposed Rates'!K23 -> -358.3256
B15: IT | C15: ='Rate IT'!F22 -> 264 | D15: ='Rate IT'!AN74 -> 1782710 | G15: IT | H15: 85499 | I15: 2225050 | J15: 0.2481278503 | K15: 442340 | M15: IT | N15: ='Proposed Rates'!O21 -> -43
G16: Additional FT for Min use | I16: =-'Proposed Rates'!K33 -> 114674.3256
M17: Total | N17: =SUM(N10:N15) -> -33155.3256
B28: OTHER | D28: ='SCH M-2.2'!V46 -> 337989 | G28: OTHER | I28: =+'SCH M-2.3'!R46 -> 233047.5844 | J28: =(I28-D28)/D28 -> -0.3104876655
B29: TOTAL | C29: =SUM(C10:C28) -> 1215429 | D29: =SUM(D10:D28) -> 111445824 | G29: TOTAL | H29: =SUM(H10:H28) -> 32925639 | I29: =SUM(I10:I28) -> 126714744.9 | J29: =(I29-D29)/D29 -> 0.1370075644 | K29: =I29-D29 -> 15268920.91

Sheet Proposed Rates
A1: PROPOSED RATE CALCULATIONS
B2: =COMPANY -> DUKE ENERGY KENTUCKY | F2: =COMPANY -> DUKE ENERGY KENTUCKY | J2: =COMPANY -> DUKE ENERGY KENTUCKY | N2: =COMPANY -> DUKE ENERGY KENTUCKY
B3: =CASE -> CASE NO. 2021-00190 | F3: =CASE -> CASE NO. 2021-00190 | J3: =CASE -> CASE NO. 2021-00190 | N3: =CASE -> CASE NO. 2021-00190
B4: PROPOSED RATE CALCULATION | F4: PROPOSED RATE CALCULATION | J4: PROPOSED RATE CALCULATION | N4: PROPOSED RATE CALCULATION
B5: Rate: RS | F5: Rate: GS | J5: Rate: FT-Large | N5: Rate: IT
C6: Test Period | G6: Test Period | K6: Test Period
B7: Customer Bills | C7: ='Rate RS'!F24 -> 1130041 | F7: Customer Bills | G7: ='Rate GS COM'!F24+'Rate GS IND'!F24+'Rate GS OPA'!F24 -> 84032 | J7: Customer Bills | K7: ='Rate FT-LG'!F22 -> 1092 | N7: Customer Bills | O7: ='Rate IT'!F22 -> 264
B8: COSS - RS Customer Component | C8: ='Revenue Requirements'!H10 -> 28611566 | F8: COSS - GS Customer Component | G8: ='Revenue Requirements'!H11+'Revenue Requirements'!H12+'Revenue Requirements'!H13 -> 4095886 | J8: COSS - FT-L Customer Component | K8: ='Revenue Requirements'!H14 -> 132688 | N8: COSS - IT Customer Component | O8: ='Revenue Requirements'!H15 -> 85499
B9: COSS Customer Charge | C9: =ROUND(C8/C7,2) -> 25.32 | F9: COSS Customer Charge | G9: =ROUND(G8/G7,2) -> 48.74 | J9: COSS Customer Charge | K9: =ROUND(K8/K7,2) -> 121.51 | N9: COSS Customer Charge | O9: =ROUND(O8/O7,2) -> 323.86
B10: Current Customer Charge | C10: =CUR_RS_CUST -> 16.5 | F10: Current Customer Charge | G10: =CUR_GS_CUST -> 50 | J10: Current Customer Charge | K10: =CUR_FTL_CUST -> 430 | N10: Current Customer Charge | O10: =CUR_IT_CUST -> 430
B11: Gap | C11: =C9-C10 -> 8.82 | F11: Gap | G11: =G9-G10 -> -1.26 | J11: Gap | K11: =K9-K10 -> -308.49 | N11: Gap | O11: =O9-O10 -> -106.14
B12: Migration @ % of Justified | C12: =ROUND(C11*$C$29,2) -> 3.53 | F12: Migration @ % of Justified | G12: =ROUND(G11*$C$29,2) -> -0.5 | J12: Migration @ % of Justified | K12: =ROUND(K11*$C$29,2) -> -123.4 | N12: Migration @ % of Justified | O12: =ROUND(O11*$C$29,2) -> -42.46
B13: Customer Charge at % Migration to COSS | C13: =C10+C12 -> 20.03 | F13: Customer Charge at % Migration to COSS | G13: =G10+G12 -> 49.5 | J13: Customer Charge at % Migration to COSS | K13: =K10+K12 -> 306.6 | N13: Customer Charge at % Migration to COSS | O13: =O10+O12 -> 387.54
B14: Proposed Customer Charge | C14: 19 | F14: Proposed Customer Charge | G14: 58 | J14: Proposed Customer Charge | K14: 430 | N14: Proposed Customer Charge | O14: 430
B15: Proposed Customer Charge Revenues | C15: ='Rate RS'!R24 -> 21470779 | F15: Proposed Customer Charge Revenues | G15: ='Rate GS COM'!R24+'Rate GS IND'!R24+'Rate GS OPA'!R24 -> 4873856 | J15: Proposed Customer Charge Revenues | K15: ='Rate FT-LG'!R22 -> 469560 | N15: Proposed Customer Charge Revenues | O15: ='Rate IT'!R22 -> 113520
B17: COSS - RS Revenue Requirement | C17: ='Revenue Requirements'!I10 -> 83658696 | F17: COSS - GS Revenue Requirement | G17: =SUM('Revenue Requirements'!I11:I13) -> 33691438 | J17: COSS - FT-L Revenue Requirement | K17: ='Revenue Requirements'!I14 -> 6791839 | N17: COSS - IT Revenue Requirement | O17: ='Revenue Requirements'!I15 -> 2225050
B18: Less Proposed Customer Charge Revenues Less GCA | C18: =C17-C15-'Rate RS'!P29 -> 35860885 | F18: Less Proposed Customer Charge Revenues Less GCA | G18: =G17-G15-'Rate GS COM'!P27-'Rate GS IND'!P27-'Rate GS OPA'!P27 -> 14691108 | J18: Less Proposed Customer Charge Revenues Less GCA/GCAT | K18: =K17-K15-'Rate FT-LG'!P25 -> 6322279 | N18: Less Proposed Customer Charge Revenues Less GCA | O18: =O17-O15-'Rate IT'!P25 -> 2111530
B19: Test Period MCF | C19: ='Rate RS'!H27 -> 6481298 | F19: Less Interdeptartmental | G19: =+G30 -> 32824.91003 | J19: Change in Min Amazon | K19: =+K33 -> -114674.3256 | N19: Test Period MCF | O19: ='Rate IT'!H25 -> 1672200
B20: Proposed Delivery Charge | C20: =ROUND(C18/C19,4) -> 5.533 | F20: GS Rev Requirement | G20: =+G18-G19 -> 14658283.09 | J20: FT-L Rev Requirement | K20: =+K18-K19 -> 6436953.326 | N20: Proposed Energy Charge | O20: =ROUND(O18/O19,4) -> 1.2627
B21: Check to Revenue Requirements | C21: ='Rate RS'!R29-C17 -> 137 | F21: Test Period MCF | G21: ='Rate GS COM'!H27+'Rate GS IND'!H27+'Rate GS OPA'!H27 -> 3477714 | J21: Test Period MCF | K21: ='Rate FT-LG'!H25 -> 2736182 | N21: Check to Revenue Requirements | O21: ='Rate IT'!R27-O17 -> -43
F22: Proposed Energy Charge | G22: =ROUND(G20/G21,4) -> 4.2149 | J22: Proposed Energy Charge | K22: =ROUND(K20/K21,4)-0.0001 -> 2.3524
F23: Check to Revenue Requirements | G23: ='Rate GS COM'!R29+'Rate GS IND'!R29+'Rate GS OPA'!R29-G17+G30 -> -66.08997067 | J23: Check to Revenue Requirements | K23: ='Rate FT-LG'!R27-K17+K33 -> -358.3256
F27: Current Interdept Rev | G27: =+'SCH M-2.2'!V41 -> 27765 | I27: Amazon Annual Delivery Component | K27: 655877
F28: GS Increase % | G28: =+'Revenue Requirements'!J11 -> 0.1822405917 | I28: Annual Usage Required | K28: =+(K27-(12*K14))/K35 -> 276618.3472
B29: Migration Percentage | C29: 0.4 | F29: Interdept Increase | G29: =+G27*G28 -> 5059.910029 | I29: Estimated Annual Usage | K29: 215594
F30: Proposed Intdept Rev | G30: =+G27+G29 -> 32824.91003 | I30: Projected Shortfall | K30: =+K28-K29 -> 61024.34722
I31: New Minumum Usage Revenue | K31: =+K30*K35 -> 143553.6744
I32: Original Min Usage Revenue | K32: =+'SCH M-2.2'!L42 -> 258228
I33: Change in Min Usage Revenue | K33: =+K31-K32 -> -114674.3256
K35: =ROUND((K18-K27+12*K14+K32)/(K21-K29),4)-0.0001 -> 2.3524
C38: =+'SCH M'!G50 -> 129982202.6
C39: 126681928
C40: =+C38-C39 -> 3300274.584

Sheet Avg Incr
D2: BILL DATA INCLUDING RIDERS LESS COST of GAS | I2: TOTAL | J2: TOTAL
F3: DOLLAR | G3: PERCENT | I3: CURRENT | J3: PROPOSED | K3: PERCENT
B4: Average | C4: Average | D4: CURRENT | E4: PROPOSED | F4: INCREASE | G4: INCREASE | H4: GAS | I4: BILL | J4: BILL | K4: INCREASE
A5: RATE | B5: USE | C5: USE | D5: BILL | E5: BILL | F5: (D - C) | G5: (E / C) | H5: COST (1) | I5: (C + G) | J5: (D + G) | K5: (I-H) /H
A6: CODE | B6: (B) | C6: (B) | D6: (C) | E6: (D) | F6: (E) | G6: (F) | H6: (G) | I6: (H) | J6: (I) | K6: (L)
B7: (CCF) | C7: (MCF) | D7: ($) | E7: ($) | F7: ($) | G7: (%) | H7: ($) | I7: ($) | J7: ($) | K7: (%)
A9: RS | B9: =+C9*10 -> 57 | C9: =ROUND(+'Rate RS'!H27/'Rate RS'!F24,1) -> 5.7 | D9: =ROUND(C9*(CUR_RS+CUR_RS_DSM)+CUR_RS_CUST+CUR_RS_HEA,2) -> 46.16 | E9: =ROUND(C9*(PRO_RS_COM+PRO_RS_DSM)+PRO_RS_CUST+PRO_RS_HEA,2) -> 53.45 | F9: =E9-D9 -> 7.29 | G9: =ROUND(F9/D9,3)*100 -> 15.8 | H9: =ROUND(C9*EGC,2) -> 23.15 | I9: =D9+H9 -> 69.31 | J9: =E9+H9 -> 76.6 | K9: =ROUND((J9-I9)/I9,3) -> 0.105
A10: GS-Comm | B10: =+C10*10 -> 363 | C10: =ROUND('Rate GS COM'!H27/'Rate GS COM'!F24,1) -> 36.3 | D10: =ROUND(C10*(CUR_GS)+CUR_GS_CUST,2) -> 156.15 | E10: =ROUND(C10*(+PRO_GS)+PRO_GS_CUST,2) -> 211 | F10: =E10-D10 -> 54.85 | G10: =ROUND(F10/D10,3)*100 -> 35.1 | H10: =ROUND(C10*EGC,2) -> 147.45 | I10: =D10+H10 -> 303.6 | J10: =E10+H10 -> 358.45 | K10: =ROUND((J10-I10)/I10,3) -> 0.181
A11: GS-Ind | B11: 1151 | C11: =ROUND('Rate GS IND'!H27/'Rate GS IND'!F24,1) -> 115.1 | D11: =ROUND(C11*(CUR_GS)+CUR_GS_CUST,2) -> 386.59 | E11: =ROUND(C11*(+PRO_GS)+PRO_GS_CUST,2) -> 543.13 | F11: =E11-D11 -> 156.54 | G11: =ROUND(F11/D11,3)*100 -> 40.5 | H11: =ROUND(C11*EGC,2) -> 467.54 | I11: =D11+H11 -> 854.13 | J11: =E11+H11 -> 1010.67 | K11: 0.183
A12: GS-OPA | B12: 1138 | C12: =ROUND('Rate GS OPA'!H27/'Rate GS OPA'!F24,1) -> 113.8 | D12: 382.79 | E12: 537.66 | F12: 154.87 | G12: 40.5 | H12: =ROUND(C12*EGC,2) -> 462.26 | I12: =D12+H12 -> 845.05 | J12: =E12+H12 -> 999.92 | K12: 0.183
A13: FT-L | B13: 25057 | C13: =ROUND('Rate FT-LG'!H25/'Rate FT-LG'!F22,1) -> 2505.7 | D13: =ROUND(C13*(CUR_FTL_COM+CUR_FTL_GCAT),2)+CUR_FTL_CUST -> 4847.55 | E13: =ROUND(C13*(PRO_FTL_COM+PRO_FTL_GCAT),2)+PRO_FTL_CUST -> 6179.08 | F13: =E13-D13 -> 1331.53 | G13: =ROUND(F13/D13,3)*100 -> 27.5 | H13: 0 | I13: =D13+H13 -> 4847.55 | J13: =E13+H13 -> 6179.08 | K13: 0.275
A14: IT | B14: 63341 | C14: =ROUND('Rate IT'!H25/'Rate IT'!F22,1) -> 6334.1 | D14: =ROUND(C14*(CUR_IT_COM),2)+CUR_IT_CUST -> 6752.7 | E14: =ROUND(C14*(PRO_IT_COM),2)+PRO_IT_CUST -> 8428.07 | F14: =E14-D14 -> 1675.37 | G14: =ROUND(F14/D14,3)*100 -> 24.8 | H14: 0 | I14: 6752.7 | J14: 8428.07 | K14: 0.248
A16: IMBS | B16: =+B13+B14 -> 88398 | C16: =+C13+C14 -> 8839.8 | D16: =ROUND(C16*B23,2) -> 969.73 | E16: =ROUND(C16*B24,2) -> 1207.52 | F16: =E16-D16 -> 237.79 | G16: =ROUND(F16/D16,3)*100 -> 24.5 | H16: 0 | I16: =D16+H16 -> 969.73 | J16: =E16+H16 -> 1207.52 | K16: =ROUND((J16-I16)/I16,3) -> 0.245
A22: IMBS
A23: Current Rate | B23: 0.1097 | C23: /mcf
A24: Proposed Rate | B24: 0.1366 | C24: /mcf
